Workbook

Sheet Comments
A1: Comment ID | B1: Comment # | C1: Name | D1: Style | E1: Index # | F1: Vote | G1: Affiliation | H1: Category | I1: Page | J1: Sub-clause | K1: Line # | L1: Comment | M1: File | N1: Proposed Change | O1: Must Be Satisfied? | P1: Disposition Status (Accepted, Rejected, Revised) | Q1: Disposition Detail | R1: Category | S1: Notes | T1: Editor Status DONE, Ready, N/A) | U1: Editor Notes | V1: Assignee
C2: Billy Verso | E2: 104 | F2: No | G2: Qorvo | H2: Editorial | I2: 1 | J2: - | K2: 13 | L2: Extraneous "0.39" at the end of the line | N2: Delete "0.39" | O2: No | P2: Accepted | T2: DONE
C3: Tero Kivinen | E3: 33 | F3: No | G3: Wi-SUN Alliance | H3: Editorial | I3: 1 | J3: Frontmatter | K3: 13 | L3: There is extra string "0.39" at the end of line. | N3: Remove extra characters. | O3: No | P3: Accepted | T3: DONE
C4: Tero Kivinen | E4: 34 | F4: No | G4: Wi-SUN Alliance | H4: Editorial | I4: 9 | J4: Introduction | K4: 26 | L4: The copyright year in the footer is wrong. | N4: Change copyright year in the footer to 2025 starting from page 9 to the end of document. | O4: No | P4: Accepted | T4: DONE
C5: Billy Verso | E5: 105 | F5: No | G5: Qorvo | H5: Editorial | I5: 9 | J5: - | K5: 27 | L5: Copyright in footer from p9 should be latest year (2025) | N5: change to "2025" | O5: No | P5: Accepted | T5: DONE
C6: Huan-Bang Li | E6: 46 | F6: Yes | G6: NICT | H6: General | I6: 14 | J6: 3.2 | K6: 11 | L6: Add acronym 'HBS' for 'Hyper Block Structure'. | N6: as suggested. | O6: Yes | P6: Rejected | Q6: This only appears as HBS IE, and it is not the practice to put the IE acronyms in clause 3.2 | T6: N/A
C7: Alex Krebs | E7: 187 | F7: Yes | G7: Apple | H7: Editorial | I7: 14 | J7: 3.2 | K7: 11 | L7: To most humans ARDEV vs ERDEV naming is confusing and indistinguishable what is advanced and what is enhanced. | N7: Consider renaming ARDEV to MMSRDEV or X-ERDEV or something else more intuitive to understand that 4ab ARDEV is a feature increment to 4z ERDEV. | O7: No | T7: Assigned | V7: Editor
C8: Tero Kivinen | E8: 37 | F8: No | G8: Wi-SUN Alliance | H8: Editorial | I8: 14 | J8: 3.2 | K8: 17 | L8: Acronym list is not sorted alphabetically. | N8: Move RSR to correct place by sorting the acronym list. | O8: No | P8: Accepted | T8: DONE
C9: Tero Kivinen | E9: 35 | F9: No | G9: Wi-SUN Alliance | H9: Editorial | I9: 14 | J9: 3.2 | K9: 24 | L9: The acronym SBP has expansion of "UWB sensing by proxy", but U is not present in the acronym, and is not used when SBP is expanded. | N9: Change "UWB sensing by proxy" to "sensing by proxy". | O9: No | P9: Revised | Q9: Change "UWB" to "(UWB)" | T9: DONE | U9: Email Tero to explain
C10: Tero Kivinen | E10: 36 | F10: No | G10: Wi-SUN Alliance | H10: Editorial | I10: 14 | J10: 3.2 | K10: 25 | L10: The acronym SDEV has expansion of "UWB sensing device", but U is not present in the acronym, and is not used when SDEV is expanded. | N10: Change "UWB sensing device" to "sensing device". | O10: No | P10: Revised | Q10: Change "UWB" to "(UWB)" | T10: DONE | U10: Email Tero to explain
C11: Pooria Pakrooh | E11: 174 | F11: No | G11: Qualcomm | H11: Technical | I11: 16 | J11: 6.6.3.3 | K11: 18 | L11: The text change from D02 to D03 is modifying the normative language. The sentence in D02 was more clearly reflecting the mandatory/optional values for AIFS for EMDEV. | N11: Use the sentence in D02, as it better represents the normative language."For the high-rate pulse repetition frequency UWB PHY based enhanced modulations device (HRP-EMDEV) sending Imm-Ack, the AIFS duration shall be equal to the value of the macEmdevImmAckAifsPeriod attribute in Table 8-36." | O11: Yes | U11: ACK
C12: Pooria Pakrooh | E12: 175 | F12: No | G12: Qualcomm | H12: Technical | I12: 23 | J12: 8.3.2.3 | K12: 1 | L12: The Rmarkers are defined as 32-bit parameters (similar to 15.4z). That is a maximum of ~67 ms. However, I don't think this is enough for non-interleaved MMS. Treply and Tround for compact frames are defined as 40-bit parameters though, which should be good. Seems like 32-bit has not been updated after adding the non-interleaved mode. | N12: In Table 8-28: 1. Change the valid range to make the elements of RangingReportDescriptor array 10 bit long. 2. Also, specify that each of 8 elements of the array has thios valid range. | O12: Yes | P12: Revised | Q12: Doc 15-25-0522-01-04ab-lb225-d03-comment-resolution-cid-175.docx | T12: DONE
C13: Billy Verso | E13: 106 | F13: No | G13: Qorvo | H13: Technical | I13: 23 | J13: 8.3.3 | K13: 7 | L13: The range actually depends on the PHY, and the valid range for each PHY given below the table. I think rather than changing to say 0-8 , a better change would be to say it depends on the PHY, as per the proposed change (right), especially as arguably a value of 8 which was added to select O-QPSK configuration, is not correct anyway see my comments on p24 line 3. | N13: Instead of replacing "0–7" by "0–8" replace it by "PHY dependent, as described below the table" | O13: Yes | T13: Assigned | U13: O-QPSK-Modulation/Rate | V13: Huan-Bang
C14: Alex Krebs | E14: 188 | F14: Yes | G14: Apple | H14: Technical | I14: 23 | J14: 8.3.2.3 RangingReportDescriptor | K14: 2 (Table 8-28) | L14: This table only describes up to 8 RIF markers, but misses up to 16 RSF markers. | N14: Duplicate the 4 rows of this table and rename "Rif" to "Rsf", "RIF" to "RSF", and change "Array of eight" to "Array of sixteen" in the resulting 4 additional rows. | O14: No | Q14: Doc 15-25-0551-00-04ab-Resolution-of-LB225-comment-index-188.docx | T14: Assigned | V14: Billy
C15: Mickael Maman | E15: 73 | F15: Yes | G15: STMicroelectronics | H15: Technical | I15: 24 | J15: 8.3.3 | K15: 1 | L15: Add MmsFixedReplyTimeEnable in TxOptions for MMS with fixed reply time option | N15: add new element of TxOptions in Table 8-29"MmsFixedReplyTimeEnable|Boolean|TRUE, FALSE|For MMS UWB ranging, this parameter is set TRUE if the transmission of the MMS UWB packet is offset from the reception of the MMS UWB packet, or FALSE otherwise | O15: Yes | T15: Assigned | U15: Fixed Reply Time | V15: Mickael
C16: Billy Verso | E16: 107 | F16: No | G16: Qorvo | H16: Technical | I16: 24 | J16: 8.3.3 | K16: 3 | L16: There is a conflict between phyOqpskModulationConfig setting the modulation (p214 line 21) and the O-QPSK modulation and the DataRate parameter to the MCPS-DATA.request also doing it for the O-QPSK PHY (p24 line 2). Could remove the use of DataRate, or make phyOqpskModulationConfig only specify the RX modulation. However this needs careful consideration to make sure the solution covers all the cases and various operations, and that we set all modes appropriately in TX and RX especially so that the receiver can correctly receive and decode the packet and report the result. | N16: The solution proposed for my other comment on this same line seems to be a good way to do it…. | O16: Yes | T16: Assigned | U16: O-QPSK-Modulation/Rate | V16: Huan-Bang
C17: Billy Verso | E17: 108 | F17: No | G17: Qorvo | H17: Technical | I17: 24 | J17: 8.3.3 | K17: 3 | L17: There is something wrong here, configuration #8 in Table 69 is a "varies" mode, so for the O-QPSK PHY DataRate parameter value of 8 does not tell the transmitter what modulation to use. Also DataRate values #2 to #5 in the "varies" case have to send a different SFD, versus same values when not in the varies case. (Note DataRate is also reported in MCSP-DATA-indication referencing these TX options for the meaning, in that case also the value #8 would be meaningless as a receive rate). | N17: A solution to this and the other comment I have relating to the conflict with phyOqpskModulationConfig would be to have this DataRate parameter only used when phyOqpskModulationConfig=8 and in that case have DataRate values #1 to #5 only as valid and selecting both the datarate and the SFD pattern. When phyOqpskModulationConfig is not 8 the DataRate parameter would be meaningless/ignored and the TX and RX mode are selected by phyOqpskModulationConfig only. | O17: Yes | T17: Assigned | U17: O-QPSK-Modulation/Rate | V17: Huan-Bang
C18: Mickael Maman | E18: 74 | F18: Yes | G18: STMicroelectronics | H18: Technical | I18: 26 | J18: 8.3.4 | K18: 4 | L18: add description of MmsFixedReplyTimeEnable for MMS with fixed reply time option | N18: add "The MmsFixedReplyTimeEnable parameter of TxOptions applies to UWB multi-millisecond (MMS) packet transmissions. When MmsFixedReplyTimeEnable is the transmission of MMS UWB packet is offset by a fixed reply time from the reception of the initiator's MMS UWB packet. By default, MmsFixedReplyTimeEnable is FALSE. The fixed reply time may be a fixed known quantity, agreed between the parties participating in the ranging exchange." | O18: Yes | T18: Assigned | U18: Fixed Reply Time | V18: Mickael
C19: Tero Kivinen | E19: 38 | F19: No | G19: Wi-SUN Alliance | H19: Editorial | I19: 26 | J19: 8.3.4 | K19: 6 | L19: The Description field of the CompactFrameID has some invalid font for the last sentence. | N19: Fix the font. | O19: No | P19: Accepted | T19: DONE
C20: Huan-Bang Li | E20: 47 | F20: Yes | G20: NICT | H20: Editorial | I20: 26 | J20: 8.3.4 | K20: 6 | L20: In the description of 'CompactFrameID' in the first row of Table 1, the second sentence starting with "If CompactSecurityEnabled …" uses different font style compared to the rest of the text. | N20: unify font style to the others. | O20: Yes | P20: Accepted | T20: DONE
C21: Billy Verso | E21: 109 | F21: No | G21: Qorvo | H21: Editorial | I21: 26 | J21: 8.3.4 | K21: 10 | L21: In description of CompactFrameID starting at: "If CompactSecurityEnabled is TRUE...", the font is wrong. | N21: change to correct font | O21: No | P21: Accepted | T21: DONE
C22: Alex Krebs | E22: 189 | F22: Yes | G22: Apple | H22: Editorial | I22: 26 | J22: 8.3.4 MCPS-DATA.request | K22: 7 (Table 1) | L22: Row 1 description uses a different font. | N22: Change to Times. | O22: No | P22: Accepted | T22: DONE
C23: Mickael Maman | E23: 75 | F23: Yes | G23: STMicroelectronics | H23: Technical | I23: 27 | J23: 8.3.5 | K23: 6 | L23: There is no error status in MCPS-DATA.confirm to indicate the MMS is not received | N23: add "MMS_RX_TIMEOUT" in valid range colomn in Table 8-31 and add text page 26 line 3 "if no MMS frame is received, the MAC sublaye shall issue the MCPS-DATA.confirm primitive with a Status of MMS_RX_TIMEOUT" | O23: Yes | T23: Assigned | U23: Need to think about this one | V23: Billy
C24: Alex Krebs | E24: 190 | F24: Yes | G24: Apple | H24: Editorial | I24: 27 | J24: 8.3.4 MCPS-DATA.request | K24: 2 (Table 2) | L24: Row 1 uses weird looking dashes. | N24: Change to same dash as in row 2. | O24: No | P24: Accepted | T24: DONE
C25: Alex Krebs | E25: 191 | F25: Yes | G25: Apple | H25: Technical | I25: 29 | J25: 8.4.3 MAC PIB attributes | K25: 22 (Table 8-36) | L25: 64 us is too aggressive for mandatory support. Software decoding of long packets will take longer than that. The mandatory value should assure interoperability with such devices, while the optional values may be used by higher performance devices to reduce latency. | N25: Change Range column to include 250, and change description to "value of 300 us is mandatory" and "values of 16 us, 32 us and 64 us is optional." and change Default column to 300. | O25: No | T25: Assigned | U25: ACK | V25: Pooria
C26: Alex Krebs | E26: 192 | F26: Yes | G26: Apple | H26: Editorial | I26: 30 | J26: 9.2.1 | K26: 12 | L26: Full stop is missing. | N26: Append "." | O26: No | P26: Accepted | T26: DONE
C27: Tero Kivinen | E27: 39 | F27: No | G27: Wi-SUN Alliance | H27: Technical | I27: 33 | J27: 9.3.2.4 | K27: 29 | L27: The note is incorrect, it should say that Start of Ranging Compact Frame carrying a Starting Block Index field provides an easy way for attacker to completely break the security of the compact frames. When attacker sends Start of Ranging Compact Frame carrying Starting Block Index to the recipient, it can set the Starting Block Index the recipient will be using in the future. This means it can force the recipient to reuse the nonce for compact frames, thus breaking security of the AEAD. The start of ranging compact frame can't even be protected, as the frame counter used to unsecured the frame needs the frame counter, which depends on the starting block index provided inside the frame. Even if there would be checks in the recipient that starting block index can't go backwards, i.e., it needs to be larger than any starting block index used before that allows another attack where the attacker can send single start of ranging compact frame with starting block index set to 0xffff, thus causing the recipient to reject all future secured frames. | N27: Remove the special secured compact frames completely (I.e., remove all changes to section 9 from 4ab draft, and section 10.39.11.3.19 Secured Compact frame). Replace secured compact frames with a method of sending compact frame contents in the MAC Command frames, which can use normal security. The actual changes needed are described in document 10-25-505. | O27: Yes | T27: Assigned | U27: Compact Frame Security | V27: Rojan
C28: Alex Krebs | E28: 193 | F28: Yes | G28: Apple | H28: Editorial | I28: 34 | J28: 9.3.5.3 | K28: 27 | L28: "Message iID field." appears to be a typo | N28: Change to "Message ID field." | O28: No | P28: Accepted | T28: DONE
C29: Alex Krebs | E29: 195 | F29: Yes | G29: Apple | H29: Editorial | I29: 35 | J29: 9.5.11 secCompactFrameKeyDescriptor | K29: 11 (Table 3) | L29: The dash used in the Range column in "0-15" is a short dash. Hurts my eyes. | N29: Use endash "–" instead of the short dash "-" for ranges. Appears in multiple other tables. | O29: No | P29: Accepted | T29: DONE
C30: Alex Krebs | E30: 194 | F30: Yes | G30: Apple | H30: Editorial | I30: 35 | J30: 9.5.1 Generic PIB attributes | K30: 5 (Table 9-8) | L30: The dash used in the Range column is a short dash. Hurts my eyes. | N30: Use emdash "—" instead of the short dash "-" for saying "none" instead. Appears in multiple other tables. | O30: No | P30: Accepted | T30: DONE
C31: Alex Krebs | E31: 196 | F31: Yes | G31: Apple | H31: Editorial | I31: 39 | J31: 10.21.6.1.4 MLME-ASSOCIATE.response | K31: 14 (Table 10-106) | L31: "AddressiongMode" appears to be a typo. | N31: Change to "AddressingMode" eventually. | O31: No | P31: Accepted | T31: DONE
C32: Huan-Bang Li | E32: 48 | F32: Yes | G32: NICT | H32: General | I32: 42 | J32: 10.29.9.2.2 | K32: 24 | L32: This paragraph presents description on MLME-SOUNDING.confirm primitive, which should be appear in '10.29.9.2.3 MLME-SOUNDING.confirm' | N32: move this paragraph to '10.29.9.2.3 MLME-SOUNDING.confirm'. | O32: Yes | P32: Rejected | Q32: The lines being modified are in this clause in the base standard. | T32: N/A
C33: Alex Krebs | E33: 197 | F33: Yes | G33: Apple | H33: Technical | I33: 42 | J33: 10.29.9 | K33: 45910 | L33: What is the difference between "sensing" and "sounding"? | N33: Consider calling it either sensing or sounding consistently. | O33: No | T33: Assigned | U33: Naming | V33: Billy
C34: Pooria Pakrooh | E34: 176 | F34: No | G34: Qualcomm | H34: Technical | I34: 46 | J34: 10.32.3.1 | K34: 24 | L34: What do "time between successive ranging blocks" and "the time between successive ranging rounds" mean? Are they referring to time duration of blocks and rounds? Or gap between successive rounds/blocks? Please clarify that. | N34: Change "time between successive ranging blocks" to "time duration of ranging blocks", and "the time between successive ranging rounds" to "the time duration of ranging rounds". | O34: Yes | T34: Assigned | U34: hyperblock | V34: Youngwan
C35: Zhenzhen Ye | E35: 18 | F35: Yes | G35: Redpoint Positioning | H35: Editorial | I35: 46 | J35: 10.32.3.1 | K35: 24-25 | L35: The words "time", ""non-uniform", "uniform" are not clear. | N35: changing "time" to "duration", changing "non-uniform" to "different", changing "uniform" to "same". | O35: No | P35: Rejected | Q35: Editor thinks the sentence is clear enough as is, and that changing "time" to "duration" would not be a positive step, while the phrase "uniform spacing" already appears in the base standard so reusing that in the lines 24-25 changes seems appropriate. | T35: N/A
C36: Alex Krebs | E36: 198 | F36: Yes | G36: Apple | H36: Technical | I36: 48 | J36: 10.32.3.5 Hyper block mode | K36: 22 | L36: "(where m does not equal p)." restriction would restrict use of random number generators hence increase complexity. Is it necessary to apply such restriction? | N36: Unless such restriction is necessary, remove. | O36: No | T36: Assigned | U36: hyperblock | V36: Youngwan
C37: Zhenzhen Ye | E37: 20 | F37: Yes | G37: Redpoint Positioning | H37: Technical | I37: 51 | J37: 10.32.3.5 | K37: 1 | L37: The Content Control Field example in Figure 8 is not same as that is defined in Figure 20 (page 60). The field "Ranging Block Duration Present" is missing in the example | N37: revise Figure 8 to include the missing field | O37: Yes | T37: Assigned | U37: hyperblock | V37: Youngwan
C38: Huan-Bang Li | E38: 49 | F38: Yes | G38: NICT | H38: Editorial | I38: 51 | J38: 10.32.8.2 | K38: 10 | L38: Delete the unnecessary '-' beford the word 'aware'. | N38: as suggested. | O38: Yes | P38: Accepted | T38: DONE
C39: Youngwan So | E39: 218 | F39: No | G39: SAMSUNG | H39: Technical | I39: 57 | J39: 10.32.9.10 | K39: 25 | L39: The mentioned field "Number of Gaps" doesn't exist in Figure 14. | N39: Please delete "The value of the Number of 25 Gaps field shall be between 0 and 64." | O39: Yes | T39: Assigned | U39: msg fields | V39: Youngwan
C40: Billy Verso | E40: 110 | F40: No | G40: Qorvo | H40: Editorial | I40: 58 | J40: 10.32.9.10 | K40: 3 | L40: Typo part of header of Table 8 accidently changed to "q" | N40: change "q" to "Block Scheduling Bitmap Length field" | O40: No | P40: Accepted | T40: DONE
C41: Zhenzhen Ye | E41: 21 | F41: Yes | G41: Redpoint Positioning | H41: Technical | I41: 59 | J41: 10.32.9.11 | K41: 18 | L41: If the ERR IE only works in Hyper Block mode, it should be stated in the description. | N41: "The ERR IE is used in the Hyper Block mode by the controller to specify, …" | O41: No | T41: Assigned | U41: msg fields | V41: Rojan
C42: Zhenzhen Ye | E42: 19 | F42: Yes | G42: Redpoint Positioning | H42: Technical | I42: 61 | J42: 10.32.9.12 | K42: 6 | L42: The description "When the Ranging Block Duration Present field value is zero, the Ranging Block Duration field is not included in the Ranging Block Description List elements" contradicts to Figure-21 in which "Ranging Block Duration" field always presents with the minimal length to be 1 Octet. | N42: change Figure-21 to allow the size of "Ranging Block Duration" field to be 0/1/2/3 | O42: Yes | T42: Assigned | U42: msg fields | V42: Youngwan
C43: Billy Verso | E43: 111 | F43: No | G43: Qorvo | H43: Editorial | I43: 63 | J43: 10.39 | K43: 3 | L43: NBA MMS UWB or UWB Driven MMS UWB is for "ranging". For improved readability it would be worth adding the word "ranging" after "MMS UWB" whenever doing so does not detract from the meaning. And perhaps where "operation" is used here to replace "operation" with "ranging". | N43: Review "MMS UWB" and add "ranging" afterwards if this does not detract from the sentence meaning | O43: No | P43: Accepted | T43: DONE
C44: Tero Kivinen | E44: 40 | F44: No | G44: Wi-SUN Alliance | H44: Editorial | I44: 63 | J44: 10.39.1 | K44: 5 | L44: This is first use of HRP-ARDEV, expand it here. | N44: Expand HRP-ARDEV here. | O44: No | P44: Accepted | T44: DONE
C45: Carlos Aldana | E45: 27 | F45: No | G45: Meta | H45: Technical | I45: 64 | J45: 10.39.1 | K45: 14 | L45: It is not clear what "values of 2ms and 1.5ms" refer to | N45: please clarify. It looks it refers to "time interval A", but it's not clear. | O45: Yes | P45: Revised | Q45: Doc 15-25-0523-00-04ab-lb225-d03-comment-resolution-cid-27-and-6.docx | T45: DONE
C46: Bin Tian | E46: 6 | F46: No | G46: Qualcomm | H46: Technical | I46: 64 | J46: 10.39.1 | K46: 18 | L46: Add " for both the intiatior and responder" after "for the time interval A" | N46: as in the comment | O46: Yes | P46: Revised | Q46: Doc 15-25-0523-00-04ab-lb225-d03-comment-resolution-cid-27-and-6.docx | T46: DONE
C47: Billy Verso | E47: 112 | F47: No | G47: Qorvo | H47: Technical | I47: 64 | J47: 10.39.1 | K47: 26 | L47: This line says "If another PHY is employed for control and reporting, the MMS UWB packet is recommended to include the initial SYNC and SFD fragment as specified in 16.2.11." Although we agreed to this wording, reading it now it perhaps it could be clearer: (a) the reporting PHY has little or no relevance on whether to including the SYNC&SFD fragment in the preceding ranging phase, (b) to be precise in meaning we should spell out the otherness (i.e. when the PHY is not the "tightly coupled" O-QPSK PHY). (c) Finally a recommendation is pretty weak and arguably insufficient guide for implementers on what they might need to do in their receiver designs, it would be better to mandate that this is transmitted so that the receiver can at least count on its presence to get synchronised. | N47: Replace with "The initial SYNC and SFD fragment (as specified in 16.2.11) shall be included in the MMS UWB packet when an O-QPSK PHY (as defined clause 13) with UWB aligned clock source (as specified in 13.3.14) is not being used in the control phase." | O47: Yes | Q47: Doc 15-25-0528-00-04ab-comment-resolution-112-113-114-126-145-155-202-233.docx | T47: Assigned | U47: SYNC+SFD Frag (#112, #113, #114, #126, #155) | V47: Youngwan
C48: Billy Verso | E48: 113 | F48: No | G48: Qorvo | H48: Technical | I48: 64 | J48: 10.39.1 | K48: 26 | L48: This sentence is repeated verbatim on p91 line 8. -- Let's only say it once. | N48: Delete the sentence on p91 line 8. | O48: Yes | Q48: Doc 15-25-0528-00-04ab-comment-resolution-112-113-114-126-145-155-202-233.docx | T48: Assigned | U48: SYNC+SFD Frag (#112, #113, #114, #126, #155) | V48: Youngwan
C49: Billy Verso | E49: 114 | F49: No | G49: Qorvo | H49: Technical | I49: 64 | J49: 10.39.1 | K49: 26 | L49: What this sentence says, is repeated in the final phrase of this sentence on p231 line 15: "In the case of UWB driven MMS UWB, the SYNC and SFD fragment shall be the first fragment sent in the MMS UWB packet, and this is also recommended when another PHY is employed for control and reporting". No need to say this a second time. | N49: Delete the ending phrase, (line 16 p231), ", and this is also recommended when another PHY is employed for control and reporting". | O49: Yes | Q49: Doc 15-25-0528-00-04ab-comment-resolution-112-113-114-126-145-155-202-233.docx | T49: Assigned | U49: SYNC+SFD Frag (#112, #113, #114, #126, #155) | V49: Youngwan
C50: Bin Tian | E50: 8 | F50: No | G50: Qualcomm | H50: Technical | I50: 65 | J50: 10.39.2 | K50: 17 | L50: "precedes active ranging,", the term active ranging is not well defined. The previous paragraph mentioned than ranging includes three phases which doesn't include the initializaion setup | M50: Add a sentence in the previous paragraph that the NMS ranging session include the initalization and setup, and active ranging stage. The active ranging sessions includes three phases ... | N50: Add a sentence in the previous paragraph that the NMS ranging session include the initalization and setup, and active ranging stage. The active ranging sessions includes three phases ... | O50: Yes | P50: Revised | Q50: Doc 15-25-0524-00-04ab-lb225-d03-comment-resolution-cid-8.docx | T50: DONE
C51: Billy Verso | E51: 115 | F51: No | G51: Qorvo | H51: Technical | I51: 65 | J51: 10.39.2 | K51: 20 | L51: The path to follow to figure out that 1.95Mb/s modulation is required to be used for the control/report packets for the UWB driven MMS UWB ranging is a little convoluted, i.e., this is buried in the specification of the mmsControlPhaseMode and mmsReportPhaseMode parameters (and Control Phase Config and Report Phase Config field values) where in table 21 values 14 or 15 apply to UWB driven, and these point onwards to the Table UWB modulation sets #1 and #2 from Table 86. We should make this easier to see, and also clarify that the 4z PHR is to be used. | N51: At the end of the first sentence on p65 line 28, add: ", and shall use the UWB modulation specified by set #1 or set #2 from Table 86 with the PHR described 16.2.7.3”. | O51: Yes | P51: Accepted | Q51: Doc 15-25-0525-01-04ab-lb225-d03-comment-resolution-cid-115.docx | T51: DONE | U51: (end of of line 20)
C52: Bin Tian | E52: 7 | F52: No | G52: Qualcomm | H52: Technical | I52: 65 | J52: 10.39.2. | K52: 23 | L52: The term "ranging phase" is overloaded: MMS UWB ranging phases inlcude a phase called "ranging phase". | M52: Change the 2nd ranging phase to measurment phase like MMS UWB ranging phases include control and measurement phase. Or change the title of the Figure 25 as MMS UWB active ranging exchange | N52: Change the 2nd ranging phase to measurment phase like MMS UWB ranging phases include control and measurement phase. Or change the title of the Figure 25 as MMS UWB active ranging exchange | O52: Yes | P52: Rejected | Q52: Doc 15-25-0526-00-04ab-lb225-d03-comment-resolution-cid-7.docx | T52: N/A | U52: Naming
C53: Billy Verso | E53: 116 | F53: No | G53: Qorvo | H53: Editorial | I53: 67 | J53: 10.39.3.2 | K53: 6 | L53: "set as SUCCESS as described in Table 27" left over upper case value. | N53: Change to "set to indicate success (as per Table 27)." | O53: No | P53: Accepted | T53: DONE
C54: Alex Krebs | E54: 199 | F54: Yes | G54: Apple | H54: Technical | I54: 67 | J54: 10.39.3.2 Session initialization | K54: 14-15 | L54: Add a MLME sequence chart here. | N54: Add sentence after line 14: "Figure <editor's choice> shows the message sequence chart for the initialization handshake for one-to-one ranging as illustrated in Figure 26. " Copy & paste Figure 28 to after this sentence and remove the following 5 messages surrounding the ADV-CONF message: MLME-RX-ENABLE.request MCPS-DATA.request Advertising Confirmation (RPA Hash responder IRK, SOR Time Offset) MCPS-DATA.indication MLME-SET.request | O54: No | Q54: Doc 15-25-0547-00-04ab-Resolution-of-LB225-comment-index-199.docx | T54: Assigned | V54: Billy
C55: Billy Verso | E55: 117 | F55: No | G55: Qorvo | H55: Technical | I55: 69 | J55: 10.39.3.3 | K55: 5 | L55: In the coordination scheme, a new initiator wanting to start ranging listens to hear Acquisition frames sent by other independent initiators in the vicinity and uses this info to position its ranging to avoid collocated sessions. It might be worth recommending that LBT is used for the opportunistic Acquisition frames transmissions to the reduce collision/overlap and improve the likelihood of their reception. | N55: Add text to recommend LBT is used for NB Acquisition frame transmissions, especially for those sent opportunistically. | O55: Yes | T55: Assigned | U55: NB/CCA/LBT | V55: Youngwan
C56: Billy Verso | E56: 118 | F56: No | G56: Qorvo | H56: Technical | I56: 69 | J56: 10.39.3.3 | K56: 9 | L56: If we want to have Narrowband Acquisition frames receivable by broadest set of devices we should also specify the modulation to use. | N56: after "channel" add "using config #1 from Table 69" | O56: Yes | T56: Assigned | U56: Acquisition | V56: Youngwan
C57: Billy Verso | E57: 119 | F57: No | G57: Qorvo | H57: Technical | I57: 69 | J57: 10.39.3.3 | K57: 10 | L57: If we want to have UWB Acquisition frames receivable by a broad set of UWB MMS devices, we should probably nominate the mode to use, and the preamble code. | N57: after "channel" add "using set #1 from Table 86 with the PHR described 16.2.7.3, and preamble code index 12”. | O57: Yes | T57: Assigned | U57: Acquisition | V57: Youngwan
C58: Billy Verso | E58: 120 | F58: No | G58: Qorvo | H58: Editorial | I58: 69 | J58: 10.39.3.3 | K58: 12 | L58: "upon regional or regulatory channel availability." missing word. | N58: add "depending" directly before "upon" | O58: No | P58: Accepted | T58: DONE
C59: Youngwan So | E59: 219 | F59: No | G59: SAMSUNG | H59: Editorial | I59: 70 | J59: 10.39.3.3 | K59: 19 | L59: Two most lefthand sided entity should be "Initiator 1 next higher layer" and "Initiator 1 MAC", respectively. | N59: Please change "Initiator" to "Initiator 1", respectively | O59: No | P59: Accepted | T59: DONE
C60: Bin Tian | E60: 9 | F60: No | G60: Qualcomm | H60: Technical | I60: 78 | J60: 10.39.3.8 | K60: 16 | L60: The previous sentence states the new parameters take effect in the next rangng round which contradicts to the current sentence "effective time is beyond the scope of this standard" | M60: remove "and effective time" before "is beyond the scope of this standards" | N60: remove "and effective time" before "is beyond the scope of this standards" | O60: Yes | T60: Assigned | U60: MMS Ranging Rounds | V60: Pooria
C61: Rojan Chitrakar | E61: 62 | F61: Yes | G61: Huawei | H61: Technical | I61: 79 | J61: 10.39.3.9 | K61: 6 | L61: How the "more concise representation" should be interpretated is not clear. | N61: Add text to explain how to interpret the "more concise representation" | O61: Yes | T61: Assigned | U61: msg fields | V61: Rojan
C62: Rojan Chitrakar | E62: 63 | F62: Yes | G62: Huawei | H62: Technical | I62: 79 | J62: 10.39.3.9 | K62: 8 | L62: For SMID Tag = 4; "SMID Length = 2" should be "SMID Length = 1"? | N62: Change to "SMID Length = 1" | O62: Yes | T62: Assigned | U62: msg fields | V62: Rojan
C63: Rojan Chitrakar | E63: 64 | F63: Yes | G63: Huawei | H63: Technical | I63: 79 | J63: 10.39.3.9 | K63: 8 | L63: Do we also need a "more concise representation" for other Compact frames, e.g., One-to-many Poll? | N63: Add "more concise representation" for other Compact frames, e.g., One-to-many Poll | O63: Yes | T63: Assigned | U63: msg fields | V63: Rojan
C64: Billy Verso | E64: 121 | F64: No | G64: Qorvo | H64: Technical | I64: 79 | J64: 10.39.3.9 | K64: 8 | L64: In Figure 40—More concise example, the comment: SMID Tag=4 SMID Length should be 1 not 2 | N64: Change to "SMID Tag=4 (One-to-one Response), SMID Length=1," | O64: Yes | T64: Assigned | U64: msg fields | V64: Rojan
C65: Billy Verso | E65: 122 | F65: No | G65: Qorvo | H65: Technical | I65: 79 | J65: 10.39.4.1 | K65: 21 | L65: "… and includes (mmsRcpPollNSlots + mmsRcpRespNSlots) ranging slots for peer-to-peer ranging." is only true for interleaved tanging | N65: change "peer-to-peer ranging." to "peer-to-peer interleaved ranging." | O65: Yes | U65: MMS Ranging Rounds
C66: Riku Pirhonen | E66: 206 | F66: Yes | G66: NXP Semiconductors | H66: Technical | I66: 80 | J66: 10.39.4.1 | K66: 1 | L66: The draft is missing the resolution to comment #19 from Doc 15-25-0331-01-04ab. The paragraph from the comment resoluton document is provided here. The purpose of the comment is to clarify that in case of non-interleaved mode the responder doesn't send immadiate repsonse to the NB poll. | N66: Insert text: "In case of non-interleaved sub-rounds, described in subclause 10.39.7, each non-interleaved sub-round has a control phase with duration defined by macMmsRcpPollNSlots or macMmsRcpRespNSlots parameter followed by a ranging phase of macMmsRpDuration. When a non-interleaved sub-round is used, the Initiator proceeds to transmit the MMS UWB Packet without waiting for a response compact frame from the Responder as it would in the interleaved case. The responder sends the response after the reception of the MMS UWB Packet from the Initiator. Any further non-interleaved NBA MMS UWB exchanges in subsequently sub-rounds would similarly each have the narrowband compact frame followed by the MMS UWB packet." | O66: No | U66: MMS Ranging Rounds
C67: Bin Tian | E67: 15 | F67: No | G67: Qualcomm | H67: Technical | I67: 80 | J67: 10.39.4.2 | K67: 31 | L67: Change "may use the listen-before-talk" to "shall use the listen-before-talk if the transmission duty cycle is above certain threshold". | M67: as in the comment. Threshold can set at 3% or the group compromised value | N67: as in the comment. Threshold can set at 3% or the group compromised value | O67: Yes | Q67: Doc 15-25-0510-02-04ab-lb225-d03-comment-resolution-channel-access-related-comments.docx | T67: Assigned | U67: NB/CCA/LBT | V67: Pooria
C68: Steve Shellhammer | E68: 17 | F68: No | G68: Qualcomm Technologies, Inc. | H68: Technical | I68: 80 | J68: 10.39.4.2 | K68: 32 | L68: NB coexistence with other technologies in UNII-3 and UNII-5 bands needs to be addressed by defining a mandatory coexistence mechanism for NB operation in UNII-3/5, with clear guidance for the implementers. | N68: Adopt a mandatory coexistence mechanism for NB operation in UNII-3 and UNII-5 bands. Adopt the proposed resolution text in DCN 15-25-426/r0 (duty cycle based CCA mode 1), or the proposed resolution text in DCN 15-25-429/r1 (Single CCA mode 1 based on transmit power). | O68: Yes | Q68: Doc 15-25-0510-02-04ab-lb225-d03-comment-resolution-channel-access-related-comments.docx | T68: Assigned | U68: NB/CCA/LBT | V68: Pooria
C69: Carlos Aldana | E69: 26 | F69: No | G69: Meta | H69: Technical | I69: 80 | J69: 10.39.4.2 | K69: 32 | L69: LBT has been shown to be the best channel access mechanism for NB device in the presence of other devices. Change "may" to a "shall" | N69: as in comment and then remove the following sentence | O69: Yes | Q69: Doc 15-25-0510-02-04ab-lb225-d03-comment-resolution-channel-access-related-comments.docx | T69: Assigned | U69: NB/CCA/LBT | V69: Pooria
C70: Pooria Pakrooh | E70: 177 | F70: No | G70: Qualcomm | H70: Technical | I70: 80 | J70: 10.39.4.2 | K70: 32 | L70: Usage of the defined channel access (LBT) for NB should be mandatory to povide predictable and guaranteed coexistence with other spectrum users. | N70: Change page 80, lines 32 and 33 to :"For the NBA MMS UWB, the O-QPSK PHY shall use the listen-before-talk (LBT) functionality defined in 32 10.39.8.3." | O70: Yes | Q70: Doc 15-25-0510-02-04ab-lb225-d03-comment-resolution-channel-access-related-comments.docx | T70: Assigned | U70: NB/CCA/LBT | V70: Pooria
C71: Alex Krebs | E71: 200 | F71: Yes | G71: Apple | H71: Technical | I71: 80 | J71: 10.39.4.2 Channel access | K71: 32 | L71: "For the NBA MMS UWB, the O-QPSK PHY may use the listen-before-talk (LBT) functionality defined in 10.39.8.3. Note that some regulatory domains require channel access using some form of LBT." is inaccurate. The channel access described in 10.39.8.3 is called CSMA and SSBD. Also no regulatory domain currently requires LBT in any of the channels used by the PHY. | N71: Change to "For the NBA MMS UWB, the O-QPSK PHY may use the channel access functionality defined in 10.39.8.3." | O71: No | Q71: Doc 15-25-0510-02-04ab-lb225-d03-comment-resolution-channel-access-related-comments.docx | T71: Assigned | U71: NB/CCA/LBT | V71: Pooria
C72: Alex Krebs | E72: 201 | F72: Yes | G72: Apple | H72: Technical | I72: 80 | J72: 10.39.4.2 Channel access | K72: 34 | L72: "When channel access fails, transmission shall be deferred for the remainder of the ranging round." is defined more clearly by the respective channel access mechanism that is chosen. The higher layer behavior is more adequately described in the remained of the subclause. | N72: Remove this line. | O72: No | Q72: Doc 15-25-0510-02-04ab-lb225-d03-comment-resolution-channel-access-related-comments.docx | T72: Assigned | U72: MMS Ranging Rounds | V72: Pooria
C73: Mickael Maman | E73: 76 | F73: Yes | G73: STMicroelectronics | H73: Technical | I73: 80 | J73: 10.39.4.2 | K73: 35 | L73: An initiator shall discontinue the MMS UWB ranging round if ..., or the initiator fails to receive the response Compact frame at the expected time. There is an exception for one-way ranging | N73: add "except for one-way ranging" | O73: Yes | Q73: Doc 15-25-0510-02-04ab-lb225-d03-comment-resolution-channel-access-related-comments.docx | T73: Assigned | U73: MMS Ranging Rounds | V73: Pooria
C74: Mickael Maman | E74: 77 | F74: Yes | G74: STMicroelectronics | H74: Technical | I74: 81 | J74: 10.39.4.2 | K74: 1 | L74: To be compatible with non interleaved mode and one to may scheme, a responder shall not discontinue the MMS UWB ranging round if the responder fails to receive the poll Compact frame at the beginning of the expected ranging round but a the expected time. | N74: remove "at the beginning of the expected ranging round" and add "at the expected time" | O74: Yes | Q74: Doc 15-25-0510-02-04ab-lb225-d03-comment-resolution-channel-access-related-comments.docx | T74: Assigned | U74: MMS Ranging Rounds | V74: Pooria
C75: Carlos Aldana | E75: 28 | F75: No | G75: Meta | H75: Technical | I75: 81 | J75: 10.39.5 | K75: 13 | L75: In the text "either of which may be zero", can they both be zero? | N75: please clarify | O75: Yes | T75: Assigned | U75: UWB MMS PACKET | V75: Panpan
C76: Youngwan So | E76: 220 | F76: No | G76: SAMSUNG | H76: Technical | I76: 81 | J76: 10.39.5 | K76: 14 | L76: When explaining about Figure 42, "mmsRpDuration" is mentioned, but the figure only has "RpDuration" | N76: Please change "RpDuration" to "mmsRpDuration" in Figure 42. | O76: No | T76: Assigned | U76: MMS Ranging Rounds | V76: Alex
C77: Mickael Maman | E77: 78 | F77: Yes | G77: STMicroelectronics | H77: Technical | I77: 81 | J77: 10.39.5 | K77: 22 | L77: add text for SS-TWR with fixed reply time | N77: add "The MMS ranging procedure may be adapted for SS-TWR with fixed reply time. If the responder is able to accurately estimate the arrival time of the MMS UWB packet and to reply with pre-known reply time, it obviates the need for any transfer of the reply time as part of the ranging exchange. In the ranging phase, the responder may start transmitting its HRP UWB PHY MMS packet offset by a fixed reply time from the start of the HRP UWB PHY MMS packet received from the initiator. This option is signaled by the MMS Fixed Reply Time parameter described in 10.39.11.1.3.8. The accuracy of the resultant range will depend on how accurate the estimation of the arrival time is and how fine a control the responding device has on the transmit time of its MMS message, where every 1 ns error in TOF translates to approximately 30 cm range error. Optionally in the ranging phase, by combining macMmsFixedReplyTimeEnable and macMmsReversedOrder, the responder may transmit the HRP UWB PHY MMS packet (described in 16.2.11), and the Initiator may start transmitting its HRP UWB PHY MMS packet offset by a fixed reply time from the start of the HRP UWB PHY MMS packet received from the responder. This option is signaled by the reversed MMS Order parameter described in 10.39.11.1.3.8. | O77: Yes | T77: Assigned | U77: Fixed Reply Time | V77: Mickael
C78: Alex Krebs | E78: 202 | F78: Yes | G78: Apple | H78: Technical | I78: 82 | J78: 10.39.6 | K78: 19-20 | L78: "If a device fails to deliver a report during its assigned slot in the report phase, OOB mechanisms might be employed to deliver it during the remaining time of the current ranging block." behavior is out of scope. | N78: Prepend by "Note—" | O78: No | Q78: Doc 15-25-0528-00-04ab-comment-resolution-112-113-114-126-145-155-202-233.docx | T78: Assigned | U78: MMS Ranging Rounds | V78: Youngwan
C79: Mickael Maman | E79: 79 | F79: Yes | G79: STMicroelectronics | H79: Technical | I79: 83 | J79: 10.39.7.1 | K79: 1 | L79: It is easier to introduce NBA-MMS UWB non interleaved with 2 subround and to add report phase. The same for UWB draiver MMS UWB non interleaved | N79: update the figure | O79: Yes | T79: Assigned | U79: MMS Ranging Rounds | V79: Riku
C80: Riku Pirhonen | E80: 207 | F80: Yes | G80: NXP Semiconductors | H80: Technical | I80: 83 | J80: 10.39.7.1 | K80: 1 | L80: Non-interleaved drawings do not show the impact of time of fligh on the consecutive alternating packets. The vertical lines aligning initiator and responder slot structures give impression that the packets stay in perfect sync with the slot start. It would be clearer to show a small (although exaggarated) shift in packet position vs start of the slot as done in the comment resolution document. Similar comment is given related to figures 44, 45, 46, 47, 48, 49, 50. | N80: Change the drawings to match with the drawings in DCN 15-25-0292-01-04ab | O80: No | T80: Assigned | U80: Figures | V80: Billy
C81: Riku Pirhonen | E81: 208 | F81: Yes | G81: NXP Semiconductors | H81: Technical | I81: 83 | J81: 10.39.7.1 | K81: 3 | L81: Non-interleaved drawings do not show the impact of time of fligh on the consecutive alternating packets. The vertical lines aligning initiator and responder slot structures give impression that the packets stay in perfect sync with the slot start. It would be clearer to show a small (although exaggarated) shift in packet position vs start of the slot as done in the comment resolution document. Similar comment is given related to figures 44, 45, 46, 47, 48, 49, 50. | N81: Change the drawings to match with the drawings in DCN 15-25-0292-01-04ab | O81: No | T81: Assigned | U81: Figures | V81: Billy
C82: Youngwan So | E82: 221 | F82: No | G82: SAMSUNG | H82: Editorial | I82: 83 | J82: 10.39.7.1 | K82: 12 | L82: Missing verb. | N82: Please change "would" to "would be" | O82: Yes | P82: Revised | Q82: Remove the "(as it would in the interleaved case)" | T82: DONE
C83: Mickael Maman | E83: 81 | F83: Yes | G83: STMicroelectronics | H83: Technical | I83: 83 | J83: 10.39.7.8 | K83: 15 | L83: Is is not clear how non interleaved mode can be extended to one-to-many | N83: An interesting example is an interleaved subround between the initiator and the responder 1 and non interleaved subround for responder 2, then responder 3 … and at the end a initiator O2M report. | O83: Yes | T83: Assigned | U83: MMS Ranging Rounds | V83: Riku
C84: Mickael Maman | E84: 80 | F84: Yes | G84: STMicroelectronics | H84: Technical | I84: 83 | J84: 10.39.7.2 | K84: 16 | L84: add a section 10.39.7.2 NBA MMS UWB non-interleaved and include all the modes in subsection | N84: as in comment | O84: Yes | T84: Assigned | U84: MMS Ranging Rounds | V84: Riku
C85: Riku Pirhonen | E85: 209 | F85: Yes | G85: NXP Semiconductors | H85: Technical | I85: 83 | J85: 10.39.7.2 | K85: 21 | L85: The text misses words "reception of", as the response is delayed by the amount of Time of Flight and cannot be perfecly synchronized to the transmission by the initiator. | N85: Add words "reception of" to sentence "one macMmsRpDurtion slots after reception of the start of the MMS packet sent by the initiator in sub-round 1" as stated in Comment resolution to Comment #22 in DCN 15-25-0292-01-04ab. | O85: No | U85: MMS Ranging Rounds
C86: Alex Krebs | E86: 203 | F86: Yes | G86: Apple | H86: Technical | I86: 83 | J86: 10.39.7.1 | K86: 1-4 | L86: Figure 44 and 45 have inconsistent legends for the same content. | N86: Change legend of Figures 44, 46, 47, 48, 49, 50, 51 from "O-QPSK" to "O-QPSK compact frame" and "UWB" to "RSF or RIF fragments". Change legend of Figure 45 "Compact frame" to "UWB compact frame". | O86: No | T86: Assigned | U86: Figures | V86: Billy
C87: Riku Pirhonen | E87: 210 | F87: Yes | G87: NXP Semiconductors | H87: Technical | I87: 84 | J87: 10.39.7.2 | K87: 1 | L87: Non-interleaved drawings do not show the impact of time of fligh on the consecutive alternating packets. The vertical lines aligning initiator and responder slot structures give impression that the packets stay in perfect sync with the slot start. It would be clearer to show a small (although exaggarated) shift in packet position vs start of the slot as done in the comment resolution document. Similar comment is given related to figures 44, 45, 46, 47, 48, 49, 50. | N87: Change the drawings to match with the drawings in DCN 15-25-0292-01-04ab | O87: No | T87: Assigned | U87: Figures | V87: Billy
C88: Billy Verso | E88: 123 | F88: No | G88: Qorvo | H88: Technical | I88: 84 | J88: 10.39.7.3 | K88: 5 | L88: In the description of the non-interleaved ranging with multiple sub rounds, the text says "repeats the poll" but constraining it to be this same message exactly is not right. For instance if it is secured, it will need to be resecured since being in a different slot, I will have different nonce and MIC values. And it should be allowed to have other parameters added/omitted/different versus the first poll? Also it would be better to have a separate message type, but if not, since this is logically responding to the Response from the responder, perhaps it should be a Response. | N88: If not a special message, then instead of "repeats the poll Compact frame", say "sends a response Compact frame" to complete the DS-TWR and consider what additional or different parameters it may have. | O88: Yes | U88: MMS Ranging Rounds
C89: Riku Pirhonen | E89: 211 | F89: Yes | G89: NXP Semiconductors | H89: Technical | I89: 84 | J89: 10.38.7.3 | K89: 6 | L89: To clarify the timing of the transmission due to impact of Time of Flight in the third subround, add words "reception of" to the sentence. | N89: Modify the text to say: "starting mmsRpDuration after reception of the start of the MMS UWB packet sent by the responder" | O89: No | U89: MMS Ranging Rounds
C90: Riku Pirhonen | E90: 212 | F90: Yes | G90: NXP Semiconductors | H90: Technical | I90: 84 | J90: 10.39.7.3 | K90: 10 | L90: Non-interleaved drawings do not show the impact of time of fligh on the consecutive alternating packets. The vertical lines aligning initiator and responder slot structures give impression that the packets stay in perfect sync with the slot start. It would be clearer to show a small (although exaggarated) shift in packet position vs start of the slot as done in the comment resolution document. Similar comment is given related to figures 44, 45, 46, 47, 48, 49, 50. | N90: Change the drawings to match with the drawings in DCN 15-25-0292-01-04ab | O90: No | T90: Assigned | U90: MMS Ranging Rounds | V90: Billy
C91: Rojan Chitrakar | E91: 65 | F91: Yes | G91: Huawei | H91: Technical | I91: 84 | J91: 10.39.7.4 | K91: 12 | L91: What is the benefit of the 2 way ranging with four non-interleaved sub-rounds? Also, how is the reply and round-trip time fields in the report frame computed in this case? | N91: Explain the benefit of the 2 way ranging with four non-interleaved sub-rounds. Also, clarify how the reply and round-trip time fields in the report frame computed in this case. | O91: Yes | T91: Assigned | U91: MMS Ranging Rounds | V91: Riku
C92: Riku Pirhonen | E92: 213 | F92: Yes | G92: NXP Semiconductors | H92: Technical | I92: 84 | J92: 10.38.7.4 | K92: 17 | L92: To clarify the timing of the transmission due to impact of Time of Flight in the fourth subround, add words "reception of" to the sentence. | N92: Modify the text to say:"starting mmsRpDuration after reception of start of the MMS UWB ranging packet sent by responder | O92: No | U92: MMS Ranging Rounds
C93: Riku Pirhonen | E93: 214 | F93: Yes | G93: NXP Semiconductors | H93: Technical | I93: 85 | J93: 10.39.7.4 | K93: 3 | L93: Non-interleaved drawings do not show the impact of time of fligh on the consecutive alternating packets. The vertical lines aligning initiator and responder slot structures give impression that the packets stay in perfect sync with the slot start. It would be clearer to show a small (although exaggarated) shift in packet position vs start of the slot as done in the comment resolution document. Similar comment is given related to figures 44, 45, 46, 47, 48, 49, 50. | N93: Change the drawings to match with the drawings in DCN 15-25-0292-01-04ab | O93: No | T93: Assigned | U93: Figures | V93: Billy
C94: Rojan Chitrakar | E94: 66 | F94: Yes | G94: Huawei | H94: Technical | I94: 85 | J94: 10.39.7.5 | K94: 5 | L94: What is the benefit of the Hybrid ranging with an interleaved and a non-interleaved sub-round? Also, how is the reply and round-trip time fields in the report frame computed in this case? | N94: Explain the benefit of the Hybrid ranging with an interleaved and a non-interleaved sub-round. Also, clarify how the reply and round-trip time fields in the report frame computed in this case. | O94: Yes | T94: Assigned | U94: MMS Ranging Rounds | V94: Riku
C95: Billy Verso | E95: 124 | F95: No | G95: Qorvo | H95: Technical | I95: 85 | J95: 10.39.7.5 | K95: 8 | L95: In the description of this hybrid exchange it says "the initiator repeats the control and ranging packets" but it should not be a repeat. Rather the initiator sends a final control packet, (possibly secured so not a repeat) and another ranging packet (possibly with RIF so again not a repeat). This is really a response to the responder so if not a special "final" frame, a "response" frame would be better than using a "poll" since a "poll" is logically being sent to solicit a response. | N95: If not a special message, then instead of "repeats the poll Compact frame", say "sends a response Compact frame" to complete the DS-TWR and consider what additional or different parameters it may have. | O95: Yes | U95: MMS Ranging Rounds
C96: Riku Pirhonen | E96: 215 | F96: Yes | G96: NXP Semiconductors | H96: Technical | I96: 85 | J96: 10.39.7.5 | K96: 9 | L96: The timing of the second packet from the initiator is done in reference to the received packet from the responder and takes Time of Flight into account. | N96: Replace sentence "The second sub-round starts mmsRpDuration after the start of the MMS UWB ranging packet sent by the initiator in the first sub-round." with sentence "The initiator starts transmission macMmsRpDuration after reception of the start of the MMS ranging packet from the responder. " as stated in Comment resolution to Comment #22 in DCN 15-25-0292-01-04ab. | O96: No | U96: MMS Ranging Rounds
C97: Pooria Pakrooh | E97: 178 | F97: No | G97: Qualcomm | H97: Technical | I97: 85 | J97: 10.39.7.5 | K97: 15 | L97: Some time durations are shown but not defined in Figure 49. | N97: In Figure 49, either define, or remove the undefined time durations shown by some double-sided arrows. | O97: Yes | T97: Assigned | U97: Figures | V97: Billy
C98: Riku Pirhonen | E98: 216 | F98: Yes | G98: NXP Semiconductors | H98: Technical | I98: 85 | J98: 10.39.7.5 | K98: 15 | L98: Non-interleaved drawings do not show the impact of time of fligh on the consecutive alternating packets. The vertical lines aligning initiator and responder slot structures give impression that the packets stay in perfect sync with the slot start. It would be clearer to show a small (although exaggarated) shift in packet position vs start of the slot as done in the comment resolution document. Similar comment is given related to figures 44, 45, 46, 47, 48, 49, 50. | N98: Change the drawings to match with the drawings in DCN 15-25-0292-01-04ab | O98: No | T98: Assigned | U98: Figures | V98: Billy
C99: Rojan Chitrakar | E99: 67 | F99: Yes | G99: Huawei | H99: Technical | I99: 85 | J99: 10.39.7.6 | K99: 17 | L99: What is the benefit of the Double-sided two-way ranging with two interleaved sub-rounds? Also, how is the reply and round-trip time fields in the report frame computed in this case? | N99: Explain the benefit of the Double-sided two-way ranging with two interleaved sub-rounds. Also, clarify how the reply and round-trip time fields in the report frame computed in this case. | O99: Yes | T99: Assigned | U99: MMS Ranging Rounds | V99: Riku
C100: Pooria Pakrooh | E100: 179 | F100: No | G100: Qualcomm | H100: Technical | I100: 85 | J100: 10.39.7.6 | K100: 17 | L100: Not clear why this new interleaved mode has been added in D03. There has not been justification for why this new mode needs to be introduced at this stage. Due to NB exchange and initial CFO compensation, the need for Double sided TWR for interleaved mode is not justified. Also, this is an interleaved mode placed under 10.39.7 subclause under non-interleaved MMS modes. | N100: Remove ubclauese 10.39.7.6. It is about a new interleaved MMS mode that has been defined under 10.39.7 clause for noninterleaved modes. Also, the need for introducing this new mode in D03 has not been discussed or justified. | O100: Yes | T100: Assigned | U100: MMS Ranging Rounds | V100: Riku
C101: Rojan Chitrakar | E101: 68 | F101: Yes | G101: Huawei | H101: Technical | I101: 85 | J101: 10.39.7.6 | K101: 20 | L101: Is there a reason to swap the order in the second sub-round? Wouldn't it be simpler to repeat the first sub-round. Also, this will require initiator to support transmission of Poll frame and responder to support transmission of Rest frame. Consider if this is really necessary. | N101: Simply repeat the first sub-round operation in the 2nd sub-round. Else, clarify the reason for the swaping of the transmission sequence in the 2nd sub-round. | O101: Yes | T101: Assigned | U101: MMS Ranging Rounds | V101: Riku
C102: Riku Pirhonen | E102: 217 | F102: Yes | G102: NXP Semiconductors | H102: Technical | I102: 86 | J102: 10.39.7.6 | K102: 3 | L102: Non-interleaved drawings do not show the impact of time of fligh on the consecutive alternating packets. The vertical lines aligning initiator and responder slot structures give impression that the packets stay in perfect sync with the slot start. It would be clearer to show a small (although exaggarated) shift in packet position vs start of the slot as done in the comment resolution document. Similar comment is given related to figures 44, 45, 46, 47, 48, 49, 50. | N102: Change the drawings to match with the drawings in DCN 15-25-0292-01-04ab | O102: No | T102: Assigned | U102: Figures | V102: Billy
C103: Rojan Chitrakar | E103: 69 | F103: Yes | G103: Huawei | H103: Technical | I103: 86 | J103: 10.39.7.7 | K103: 5 | L103: Is the MMS Initiatlization and Setup phase applicable for One-way ranging as well? OWR use cases may not even require negotiation between devices. In such cases, Initialization and setup may not even be required; it may be sufficient for the initiator to periodically send out SOR frames indicating the start times of the OWR MMS packets. Also, for OWR use case, Poll frame (with RPA hash) may not be the best option. | N103: Clarify whether the initialization and setup phase is required for OWR. Add the option of OWR without Initialization and Setup; in this case it may be benificial to define a variant of Poll frame specifically for OWR. | O103: Yes | T103: Assigned | U103: MMS Ranging Rounds | V103: Riku
C104: Youngwan So | E104: 222 | F104: No | G104: SAMSUNG | H104: Editorial | I104: 86 | J104: 10.39.7.7 | K104: 8 | L104: Seems like typo | N104: Please change "The" to "There" maybe. | O104: Yes | P104: Accepted | T104: DONE
C105: Pooria Pakrooh | E105: 180 | F105: No | G105: Qualcomm | H105: Technical | I105: 87 | J105: 10.39.8.3 | K105: 17 | L105: The details of LBT have been removed in D03, instead of being further clarified. NB coexistence with other technologies in UNII-3 and UNII-5 bands needs to be addressed by defining a mandatory channel access mechanism for NB operation in UNII-3/5, with clear and detailed guidance for the implementers. Adopt the proposed change in DCN 15-25-426/r0, which suggests to use CCA mode 1 for duty cycle greater that 2.5% | N105: Change subclause 10.39.8.3 by replacing the existing text with the proposed text resolution in DCN 15-25-426/r0. The text is copied below for reference, see DCN15-25-426/r0 for thge detailed text proposal: " An NB device in section 10.39 (NBA UWB MMS) and 10.44 (UWB data offload to NB) operating in channels 0-249 in 5800 MHz and 6200 MHz bands, shall measure its NB transmission duty cycle, which is defined as the maximum ratio of the total NB transmission duration divided by any 100 ms observation window. Above 2.5% duty cycle an NB capable device shall perform CCA mode 1 before each O-QPSK PHY transmission. The ED threshold shall be set to the value required by local regulations; otherwise, it shall be set to -75 dBm/MHz. After completing the CCA, if the CCA is idle , the device shall start transmission no later than 16 μs after completing the CCA. If the CCA is busy and the number of consecutive CCAs is not equal to macMmsNbMaxConsecutiveCCAs, the device shall go the next channel (which might be the same channel) and perform a new CCA after at least 50 us when on another channel or after at least 100 us when on the same channel. Otherwise, the device shall skip transmission for the current ranging round. A receiving device shall check for the presence of an expected O-QPSK PHY transmission. If the expected transmission is not present and the number of consecutive absences is not equal to macMmsNbMaxConsecutive-CCAs, the device shall go to the next channel (which might be the same channel) and check for the presence of the expected transmission there. Otherwise, the device shall skip the expected reception." | O105: Yes | Q105: Doc 15-25-0510-02-04ab-lb225-d03-comment-resolution-channel-access-related-comments.docx | T105: Assigned | U105: NB/CCA/LBT | V105: Pooria
C106: Bin Qian | E106: 3 | F106: No | G106: Huawei | H106: Technical | I106: 87 | J106: 10.39.8.3 | K106: 18 | L106: The UNII-5 band is not license-free in China, which will result in increasing congestion in the UNII-3 band. To achieve better coexistence, a duty cycle–based LBT mechanism is necessary. We propose setting the duty cycle threshold at 5% within any 100ms interval: when the duty cycle is at or below 5%, LBT may be used; when the duty cycle exceeds 5%, LBT shall be used. | N106: Change 10.39.8.3 to read as follows: "If the NB duty cycle within any 100ms observation window exceeds 5%, one of the channel access methods defined in 6.3.2 or 10.45 with CCA mode 1 or 3 shall be applied by initiator and responder independently in each transmission slot, even when the same channel is used in consecutive slots. If the the NB duty cycle within any 100ms observation window is 5% or lower, the same method may be used to improve coexistence with other spectrum users" | O106: Yes | Q106: Doc 15-25-0510-02-04ab-lb225-d03-comment-resolution-channel-access-related-comments.docx | T106: Assigned | U106: NB/CCA/LBT | V106: Pooria
C107: Bin Tian | E107: 13 | F107: No | G107: Qualcomm | H107: Technical | I107: 87 | J107: 10.39.8.3 | K107: 18 | L107: There is no mandatory coexistence scheme defined for NB operation. | M107: Change to LBT is mandatory required for NB operation if its transmission dutcy cycle is above certain threshold | N107: Change to LBT is mandatory required for NB operation if its transmission dutcy cycle is above certain threshold | O107: Yes | Q107: Doc 15-25-0510-02-04ab-lb225-d03-comment-resolution-channel-access-related-comments.docx | T107: Assigned | U107: NB/CCA/LBT | V107: Pooria
C108: Alex Krebs | E108: 204 | F108: Yes | G108: Apple | H108: Technical | I108: 87 | J108: 10.39.8.3 Listen-before-talk (LBT) | K108: 18 | L108: The conditional statement "If LBT is required [...] for regulatory reasons or as a coexistence mechanism, then [...] shall be applied" is unclear because: 1. "regulatory reasons" imply the existence of a legal requirement. Mandating the use of a specific IEEE 802.15.4 method may not meet this requirement. In that case, implementers would have to make a choice between violating regulatory requirements or violating 802.15.4ab requirements. 2. "coexistence reasons" would be for the device/implementer to determine subjectively since no objective (normative) criteria for coexistence exist in the 802.15.4-2024 standard. The proposed text change clarifies the sentence adequately by suggesting options to meet the requirements if either of the stated conditions carries. | N108: Change paragraph to "If LBT is required before a transmission for regulatory reasons then one of the channel access methods defined in 6.3.2 or 10.45 with CCA mode 1 or 3a may be applied by initiator and responder independently in each transmission slot, even if the same channel is used in consecutive slots. If LBT is not required, the same methods may be used to improve coexistence with other spectrum users." | O108: No | Q108: Doc 15-25-0510-02-04ab-lb225-d03-comment-resolution-channel-access-related-comments.docx | T108: Assigned | U108: NB/CCA/LBT | V108: Pooria
C109: Bin Tian | E109: 14 | F109: No | G109: Qualcomm | H109: Technical | I109: 87 | J109: 10.39.8.3 | K109: 19 | L109: "channel access methods defined in 6.3.2 or 10.45 with CCA mode 1 or 3 shall be applied". Many details like the ED threshold need to be defined for NB LBT | M109: Add a setence on the LBT parameters like ED threshold (e.g. -75dBm/MHz) | N109: Add a setence on the LBT parameters like ED threshold (e.g. -75dBm/MHz) | O109: Yes | Q109: Doc 15-25-0510-02-04ab-lb225-d03-comment-resolution-channel-access-related-comments.docx | T109: Assigned | U109: NB/CCA/LBT | V109: Pooria
C110: Carlos Aldana | E110: 22 | F110: No | G110: Meta | H110: Technical | I110: 87 | J110: 10.39.8.3 | K110: 19 | L110: Energy Detect Threshold is sometimes not defined and could be set arbitrarily large. Guidance should be provided when it is not defined. | N110: Define EDT to be min(-69 dBm/MHz, -67 dBm/MHz – Ptx) in channels 0 to 49 and to max(-83 dBm/MHz, min(-63 dBm/MHz,-70 dBm/MHz – Ptx)) in channels 50 to 249, where Ptx is the equipment’s instantaneous transmit power for the upcoming transmission in dBm | O110: Yes | Q110: Doc 15-25-0510-02-04ab-lb225-d03-comment-resolution-channel-access-related-comments.docx | T110: Assigned | U110: NB/CCA/LBT | V110: Pooria
C111: Carlos Aldana | E111: 23 | F111: No | G111: Meta | H111: Technical | I111: 87 | J111: 10.39.8.3 | K111: 1900-01-19 | L111: CCA Mode 3 is not defined | N111: change it to CCA mode 3a | O111: Yes | P111: Revised | Q111: Doc 15-25-0513-00-04ab-lb225-d03-comment-resolution-cids-23-and-30.docx | T111: DONE
C112: Carlos Aldana | E112: 24 | F112: No | G112: Meta | H112: Technical | I112: 87 | J112: 10.39.8.3 | K112: 19 | L112: CCA Mode 4 is not an adequate mechanism | N112: Add "CCA Mode 4 shall not be used as a channel access mechanism" | O112: Yes | Q112: Doc 15-25-0510-02-04ab-lb225-d03-comment-resolution-channel-access-related-comments.docx | T112: Assigned | U112: NB/CCA/LBT | V112: Pooria
C113: Carlos Aldana | E113: 25 | F113: No | G113: Meta | H113: Technical | I113: 87 | J113: 10.39.8.3 | K113: 19 | L113: Channel Access mechanism is ambiguous when LBT is not required. Change the sentence "If LBT is not required, the same methods may be used to improve coexistence with other spectrum users." to provide better guidance. | N113: Change sentence to "If LBT is not required, the same methods shall be used to improve coexistence with other spectrum users." | O113: Yes | Q113: Doc 15-25-0510-02-04ab-lb225-d03-comment-resolution-channel-access-related-comments.docx | T113: Assigned | U113: NB/CCA/LBT | V113: Pooria
C114: Carlos Aldana | E114: 29 | F114: No | G114: Meta | H114: Technical | I114: 87 | J114: 10.39.8.3 | K114: 19 | L114: The required ED threshold is sometimes specified by local regulations for a given band, and varies region to region and band to band. In the case that it is not specified, we should specify it. | N114: Add a statement that says "phyCcaEdThreshold shall be set to shall be set to the value required by local regulations; otherwise, it shall be set to min(-69 dBm/MHz, -67 dBm/MHz – Ptx) in channels 0 to 49 and to max(-83 dBm/MHz, min(-63 dBm/MHz,-70 dBm/MHz – Ptx)) in channels 50 to 249, where Ptx is the equipment’s instantaneous transmit power for the upcoming transmission in dBm | O114: Yes | Q114: Doc 15-25-0510-02-04ab-lb225-d03-comment-resolution-channel-access-related-comments.docx | T114: Assigned | U114: NB/CCA/LBT | V114: Pooria
C115: Carlos Aldana | E115: 30 | F115: No | G115: Meta | H115: Technical | I115: 87 | J115: 10.39.8.3 | K115: 19 | L115: CCA mode 3 does not exist anymore | N115: specify whether 3a or 3b | O115: Yes | P115: Revised | Q115: Doc 15-25-0513-00-04ab-lb225-d03-comment-resolution-cids-23-and-30.docx | T115: DONE
C116: Carlos Aldana | E116: 31 | F116: No | G116: Meta | H116: Technical | I116: 87 | J116: 10.39.8.3 | K116: 19 | L116: How long is CCA duration? Too short of a duration can lead to not being able to access the channel when in fact the device can. Please specify | N116: An 802.11 device has typical CCA measurement duration (aCCATime for those familiar with 802.11 spec) of 4us and uses 20 MHz bandwidth, resulting in 80 CCA samples. In order to keep the same accuracy and false detection probability, we should use 4*20/2.5 = 32us. Note that in order to reduce the CCA duration and keep the same performance, the CCA BW can be increased. Therefore, add a sentence that says "The CCA duration should be at least 32us*2.5/CCA_BW_MHz, where CCA_BW_MHz denotes the CCA bandwidth in MHz." | O116: Yes | Q116: Doc 15-25-0510-02-04ab-lb225-d03-comment-resolution-channel-access-related-comments.docx | T116: Assigned | U116: NB/CCA/LBT | V116: Pooria
C117: Carlos Aldana | E117: 32 | F117: No | G117: Meta | H117: Technical | I117: 87 | J117: 10.39.8.3 | K117: 19 | L117: When doing LBT, if the channel is deemed free, the transmission should occur immediately. This reduces the probability of a collision. | N117: Please add the following: "When the channel is sensed free, the transmission shall occur immediately." | O117: Yes | Q117: Doc 15-25-0510-02-04ab-lb225-d03-comment-resolution-channel-access-related-comments.docx | T117: Assigned | U117: NB/CCA/LBT | V117: Pooria
C118: Pooria Pakrooh | E118: 181 | F118: No | G118: Qualcomm | H118: Technical | I118: 88 | J118: 10.39.8.4.3 | K118: 23 | L118: AllowedChannellist can be changed in every round. However, the channel switching mechanism defined in 10.39.8.4.3 only enables channel switching per block. For better resilience to NB fading and coexistence, it is better to do hopping per block. | N118: Channel channel switching protocol to enable NB Channel hopping per round. Make the Nbaprng seed to be a function of RangingRoundIndex and RangingBlockIndex, instead of just a function of RangingBlockIndex. | O118: Yes | T118: Assigned | U118: NB/CCA/LBT | V118: Alex
C119: Billy Verso | E119: 125 | F119: No | G119: Qorvo | H119: Technical | I119: 89 | J119: 10.39.9.1 | K119: 15 | L119: In Figure 53 the UWB fragments should be on 1ms boundaries, not slots! Also while the poll and response NB packets have nslots parameters to define the size, there is no need to put this in every figure. | N119: In Figure 53 remove the slot 0, 1, 2, etc designations. And in ranging phase show distance between UWB fragments transmissions as 1ms. And do the same in Figure 54. | O119: Yes | T119: Assigned | U119: Figures | V119: Jinjing
C120: Youngwan So | E120: 223 | F120: No | G120: SAMSUNG | H120: Editorial | I120: 90 | J120: 10.39.9.2 | K120: 4 | L120: No period mark | N120: Please put period | O120: No | P120: Accepted | T120: DONE
C121: Li-Hsiang Sun | E121: 186 | F121: Yes | G121: MediaTek | H121: Technical | I121: 90 | J121: 10.39.9.2 | K121: 11 | L121: for Message Control field value is 6, the responder does not have a corresponding Prand to calculate the Responder RPA hash. Suggest to add a requirement that Prand in subsequent O2M poll compact frames in the same O2M ranging round has the same Prand as in the initial O2M Poll, if the initial O2M poll has Message Control field value of 6 | N121: Suggest to add a requirement that Prand in subsequent O2M poll compact frames in the same O2M ranging round has the same value of Prand as in the initial O2M Poll, if the initial O2M poll has Message Control field value of 6 | O121: No | T121: Assigned | U121: MMS Ranging Rounds | V121: Jinjing
C122: Youngwan So | E122: 224 | F122: No | G122: SAMSUNG | H122: Editorial | I122: 91 | J122: 10.39.9.3 | K122: 3 | L122: Typo in "Reponse" in Figure 55 and Figure 56 | N122: Please change "Reponse" to "Response" | O122: No | P122: Accepted | T122: DONE
C123: Billy Verso | E123: 126 | F123: No | G123: Qorvo | H123: Technical | I123: 91 | J123: 10.39.9.2 | K123: 8 | L123: This sentence is a repeat of p64 line26. I have a separate comment on revising that earlier line, which rather than also doing here, I propose just not saying the same thing twice. | N123: Delete this sentence. | O123: Yes | Q123: Doc 15-25-0528-00-04ab-comment-resolution-112-113-114-126-145-155-202-233.docx | T123: Assigned | U123: SYNC+SFD Frag (#112, #113, #114, #126, #155) | V123: Youngwan
C124: Billy Verso | E124: 127 | F124: No | G124: Qorvo | H124: Editorial | I124: 94 | J124: 10.39.9.4.4 | K124: 4 | L124: Earlier heading used "narrowband assistance" but here it is "narrowband assist", lets be consistent | N124: Look at use of "narrowband assistance" and "narrowband assist" through the doc and decide which is best, and use same everywhere | O124: No | P124: Accepted | T124: DONE | U124: Changed 4 cases of "narrowband assistance" to "narrowband assist".
C125: Youngwan So | E125: 225 | F125: No | G125: SAMSUNG | H125: Editorial | I125: 94 | J125: 10.39.9.4.4 | K125: 8 | L125: Sentence in line 8 "Example operation of the multiple RSF transmissions per slot with narrowband assist is shown in Figure 61." is just a repeat of sentence in line 5. | N125: Please delete"Example operation of the multiple RSF transmissions per slot with narrowband assist is shown in Figure 61." in line 8 | O125: Yes | P125: Accepted | T125: DONE
C126: Tero Kivinen | E126: 41 | F126: No | G126: Wi-SUN Alliance | H126: Technical | I126: 99 | J126: 10.39.11.1.2.1 | K126: 12 | L126: My comment 94 was rejected because there was no alternative text. This comment will provide that alternative text. | N126: Remove 2nd sentence of 2nd paragraph of 10.39.11.1.2.1 (starting at line 12, ending at line 14. Replace it as follows: "The RPA Hash field value is calculated by doing an AEAD encryption operation (Section 2.1 of RFC 5116) with following parameters: secret key K=IdentityResolvingKey, nonce N = 0x00 ... 00, plaintext P = empty, and associated data A = RPA prand. The RPA Hash field value is then taken as bits 0 to 23 of the output ciphertext C. The AEAD algorithm used is specified by the macIrkAlgorithmId." | O126: Yes | T126: Assigned | U126: RPA | V126: Alex
C127: Billy Verso | E127: 128 | F127: No | G127: Qorvo | H127: Editorial | I127: 99 | J127: 10.39.11.1.2.1 | K127: 18 | L127: "can use the MLME-18 SET.request primitive to set" is okay but typically we don't need not mention the primitive when talking about setting PIB attributes, since globally in the base standard it is known that they are set this way. | N127: Change to "can set" | O127: No | P127: Accepted | T127: DONE
C128: Billy Verso | E128: 129 | F128: No | G128: Qorvo | H128: Technical | I128: 99 | J128: 10.39.11.1.2.1 | K128: 28 | L128: "communicated over-the-air by the transmitting device" referring to the PRAND value is a little confused/confusing here. The macIrkDescriptor structure has a list of macIrkEntry with space for PRAND and Extended address, but the global Boolean macIrkAssocRpaPrandPresent in the macIrkDescriptor, suggests that the PRAND may not be there. | N128: Add some explicit text to describe the process by which certain specified packets that convey the PRAND are used (by the MAC or the upper layer?) to populate macIrkAssocRpaPrand in the macIrkEntry data. Also text describing the scenarios where macIrkAssocRpaPrandPresent is FALSE, and what is the handling in that case. | O128: Yes | T128: Assigned | U128: RPA | V128: Alex
C129: Youngwan So | E129: 226 | F129: No | G129: SAMSUNG | H129: Editorial | I129: 99 | J129: 10.39.11.1.2.2 | K129: 38 | L129: Need consistency : 3-octet in line 38 vs. three-octet in line 40. | N129: Please change "3-octet" in line 38 to "three octet" | O129: No | P129: Accepted | T129: DONE
C130: Billy Verso | E130: 130 | F130: No | G130: Qorvo | H130: Technical | I130: 100 | J130: 10.39.11.1.2.3 | K130: 20 | L130: macIrkExtendedAddr is used here but looking at Table 35, macIrkExtendedAddrPresent may be FALSE, which presumably means that the securing or de-securing will fail. I think we need some text to (a) describe how macIrkExtendedAddr gets populated (is it OOB or is there an over the air messages used to convey it during association perhaps, and presumably the NHL has a role in validating this before writing the value into the PIB). Should also make sure securing and de-securing correctly report the failure if the macIrkExtendedAddr is not set. | N130: I think we need text to (a) describe how macIrkExtendedAddr gets populated, and, (b) to return a security failure status for the case that it isn't. I think this is there for the de-securing case, but not for the securing case. Presumably if the IRK being used is the destination IRK then the extended address of the destination is needed for securing, and if not set in the IRK descriptor this should produce an error status returned from the securing process. | O130: Yes | T130: Assigned | U130: RPA | V130: Rojan
C131: Rojan Chitrakar | E131: 70 | F131: Yes | G131: Huawei | H131: Technical | I131: 101 | J131: 10.39.11.1.3.2 | K131: 15 | L131: How to indicate SMID values for Compact frames with no defined Message Control values (e.g., Secured Compact frame, Vendor specific Compact frame)? | N131: Clarify how to indicate SMID values for Compact frames with no defined Message Control values (e.g., Secured Compact frame, Vendor specific Compact frame) | O131: Yes | T131: Assigned | U131: msg fields | V131: Rojan
C132: Huan-Bang Li | E132: 50 | F132: Yes | G132: NICT | H132: Editorial | I132: 104 | J132: 10.39.11.1.3.7 | K132: 23 | L132: Delete redundant 'in' before word 'Table 12'. | N132: as suggested. | O132: Yes | P132: Accepted | T132: DONE
C133: Billy Verso | E133: 131 | F133: No | G133: Qorvo | H133: Editorial | I133: 104 | J133: 10.39.11.1.3.7 | K133: 23 | L133: "in in" typo…. | N133: change to single "in" | O133: No | P133: Accepted | T133: DONE
C134: Huan-Bang Li | E134: 51 | F134: Yes | G134: NICT | H134: Editorial | I134: 105 | J134: 10.39.11.1.3.7 | K134: 1 | L134: Delete the colon after word 'selected' in the first row, right column of Table Table 12. | N134: as suggested. | O134: Yes | P134: Accepted | T134: DONE
C135: Mickael Maman | E135: 82 | F135: Yes | G135: STMicroelectronics | H135: Technical | I135: 107 | J135: 10.39.11.1.3.8 | K135: 3 | L135: add MMs Mixed reply time anf Reversed MMS order in Figure 72 and description for SS-TWR with fixed reply time | N135: add "The MMS Fixed Reply Time field specifies if the responder may start transmitting its HRP UWB PHY MMS packet offset by a fixed reply time from the reception of the HRP UWB PHY MMS packet from the initiator instead of the start into the ranging phase. By default, the MMS Fixed Reply Time is FALSE. The Reversed MMS Order field specifies if the order of the transmissions of the MMS UWB packet of the Initiator and the responder is reversed. When TRUE, in the ranging phase, the responder may transmit the HRP UWB PHY MMS packet (described in 16.2.11), and the Initiator may start transmitting its HRP UWB PHY MMS packet offset by 600 RSTU from the start into the ranging phase. " | O135: Yes | T135: Assigned | U135: Fixed Reply Time | V135: Mickael
C136: Bin Tian | E136: 10 | F136: No | G136: Qualcomm | H136: Technical | I136: 108 | J136: 10.39.11.1.3.9 | K136: 13 | L136: "in units of ranging slots in the range 0 to 15.9". Seems wrong | N136: Change to "in the range of 0 to 15" | O136: Yes | P136: Accepted | T136: DONE
C137: Billy Verso | E137: 132 | F137: No | G137: Qorvo | H137: Editorial | I137: 108 | J137: 10.39.11.1.3.9 | K137: 13 | L137: "15.9" typo…. | N137: change to "15" | O137: No | P137: Accepted | T137: DONE
C138: Mickael Maman | E138: 83 | F138: Yes | G138: STMicroelectronics | H138: Technical | I138: 108 | J138: 10.39.11.1.3.9 | K138: 19 | L138: It is not possible to indicate "One ranging sub-round, interleaved, DS-TWR" | N138: remove reserved value in Table 20, add "One ranging sub-round, interleaved, DS-TWR" in Table 20 for the value 1 and move the other | O138: Yes | U138: MMS Ranging Rounds
C139: Billy Verso | E139: 133 | F139: No | G139: Qorvo | H139: Technical | I139: 109 | J139: 10.39.11.1.3.12 | K139: 33 | L139: We shouldn't say "This field carries the value of the macMmsPrngSeed attribute." I think the field is communicating a seed value, to be used as the seed, possibly to be written to the macMmsPrngSeed attribute, by the NHL if/when it accepts the value. | N139: Just delete this sentence. | O139: Yes | T139: Assigned | U139: msg fields | V139: Alex
C140: Billy Verso | E140: 134 | F140: No | G140: Qorvo | H140: Editorial | I140: 110 | J140: 10.39.11.1.3.13 | K140: 3 | L140: "in in" typo…. | N140: change to single "in" | O140: No | P140: Accepted | T140: DONE
C141: Huan-Bang Li | E141: 52 | F141: Yes | G141: NICT | H141: Editorial | I141: 110 | J141: 10.39.11.1.3.13 | K141: 6 | L141: Delete redundant 'in' before word 'Table 21'. | N141: as suggested. | O141: Yes | P141: Accepted | T141: DONE
C142: Billy Verso | E142: 135 | F142: No | G142: Qorvo | H142: Editorial | I142: 110 | J142: 10.39.11.1.3.13 | K142: 6 | L142: "in in" typo…. | N142: change to single "in" | O142: No | P142: Accepted | T142: DONE
C143: Mickael Maman | E143: 84 | F143: Yes | G143: STMicroelectronics | H143: Editorial | I143: 110 | J143: 10.39.11.1.3.13 | K143: 15 | L143: several typos: return line 10, remove "when the" line 18 | N143: typo as in comment | O143: Yes | P143: Accepted | T143: DONE
C144: Youngwan So | E144: 227 | F144: No | G144: SAMSUNG | H144: Editorial | I144: 110 | J144: 10.39.11.1.3.13 | K144: 15 | L144: Unintended line-break | N144: Please remove line break | O144: No | P144: Accepted | T144: DONE
C145: Pooria Pakrooh | E145: 182 | F145: No | G145: Qualcomm | H145: Technical | I145: 110 | J145: 10.39.11.1.3.13 | K145: 16 | L145: Sentence in 15-19 seems to be duplicated. | N145: Line 12-14 and 15-19 seem to be repeating same concept. Remove the redundancy. | O145: Yes | T145: Assigned | U145: msg fields | V145: Alex
C146: Huan-Bang Li | E146: 53 | F146: Yes | G146: NICT | H146: Editorial | I146: 110 | J146: 10.39.11.1.3.13 | K146: 18 | L146: Modify "when the when the O QPSK" to "when the O-QPSK". | N146: as suggested. | O146: Yes | P146: Accepted | T146: DONE
C147: Youngwan So | E147: 228 | F147: No | G147: SAMSUNG | H147: Editorial | I147: 110 | J147: 10.39.11.1.3.13 | K147: 18 | L147: Double "when the" | N147: Please remove either of "when the"s. | O147: Yes | P147: Accepted | T147: DONE
C148: Youngwan So | E148: 229 | F148: No | G148: SAMSUNG | H148: Technical | I148: 111 | J148: 10.39.11.1.3.14 | K148: 1 | L148: "Block and Round Index Present" field is defined here but never used throughout the document. The "Presence Bitmap" itself is reused several places in other sub-clauses, such as p.120L16 and p.125L9. In p.120L16, the "Block and Round Index Present" field seems to be replaced with "Starting Block Index". In p.125L9, "Block and Round Index Present" field seems to be replaced with "Response Status" | N148: Please align all the fields inside "Presence Bitmap" wherever "Presence Bitmap" is used in the whole document. | O148: Yes | T148: Assigned | U148: msg fields | V148: Rojan
C149: Youngwan So | E149: 230 | F149: No | G149: SAMSUNG | H149: Editorial | I149: 113 | J149: 10.39.11.1.3.17 | K149: 9 | L149: Seems there's typo in sentence : "The range of valid of Reply Time and Round-trip Time field values shall be limited…." | N149: Change "The range of valid of Reply Time…" to "The range of valid Reply Time…" please. | O149: Yes | P149: Accepted | T149: DONE
C150: Billy Verso | E150: 136 | F150: No | G150: Qorvo | H150: Editorial | I150: 113 | J150: 10.39.11.1.3.17 | K150: 10 | L150: "in in" typo…. | N150: change to single "in" | O150: No | P150: Accepted | T150: DONE
C151: Rojan Chitrakar | E151: 71 | F151: Yes | G151: Huawei | H151: Technical | I151: 115 | J151: 10.39.11.3.1 | K151: 9 | L151: "A Message Control field value of zero signals that the initiator supports Compact frames with Compact Frame ID field values of 0x01 to 0x06 with a Message Control field value of 0x00." "Message Control field value of 0x00" should be "Message ID field value of 0x00" | N151: Change "… Message Control field value of 0x00" to "… Message ID field value of 0x00" | O151: Yes | T151: Assigned | U151: msg fields | V151: Alex
C152: Rojan Chitrakar | E152: 72 | F152: Yes | G152: Huawei | H152: Technical | I152: 115 | J152: 10.39.11.3.1 | K152: 9 | L152: "A Message Control field value of zero signals that the initiator supports Compact frames with Compact Frame ID field values of 0x01 to 0x06 with a Message Control field value of 0x00." What about supoprt of Message Control values for the Advertising Poll Compact frame itself, which has 2 Message Control values: 0 & 1. | N152: Clarify how support for the Message Control values for the Advertising Poll Compact frame itself is signaled. | O152: Yes | T152: Assigned | U152: msg fields | V152: Alex
C153: Mickael Maman | E153: 85 | F153: Yes | G153: STMicroelectronics | H153: Technical | I153: 115 | J153: 10.39.11.3.1 | K153: 21 | L153: add "if present" in the description of the SMID TLV field description for the ADV Poll | N153: add "if present" | O153: Yes | T153: Assigned | U153: msg fields | V153: Rojan
C154: Mickael Maman | E154: 86 | F154: Yes | G154: STMicroelectronics | H154: Technical | I154: 117 | J154: 10.39.11.3.2 | K154: 11 | L154: The SMID TLV field for the ADV response is used by the responder to signal to the initiator | N154: change "This is used by the initiator to signal to responders which compact frames and which message control values it supports." by "This is used by the responder to signal to initiator which compact frames and which message control values it supports" | O154: Yes | T154: Assigned | U154: msg fields | V154: Rojan
C155: Huan-Bang Li | E155: 54 | F155: Yes | G155: NICT | H155: Editorial | I155: 118 | J155: 10.39.11.3.3 | K155: 14 | L155: Add 'Figure 87' to the end of sentence. | N155: as suggested. | O155: Yes | P155: Accepted | T155: DONE
C156: Bin Tian | E156: 11 | F156: No | G156: Qualcomm | H156: Technical | I156: 119 | J156: 10.39.11.3.4 | K156: 3 | L156: The RPA Hash field is calculated using either the responser's IPK for single responder case or initiator's IPK otherwise. Why not just harmonizing to always using the initiator's IPK? | N156: as in the comment | O156: Yes | T156: Assigned | U156: msg fields | V156: Alex
C157: Bin Tian | E157: 12 | F157: No | G157: Qualcomm | H157: Technical | I157: 125 | J157: 10.39.11.3.6 | K157: 5 | L157: Why does the One-to-one poll compact frame uses 2 octets with value 0 to clock estimate (in P122) while one-to-one response compact frame needs 5 octets of zeros | M157: Change the response compact frame to only inlcude two octets of zeros | N157: Change the response compact frame to only inlcude two octets of zeros | O157: Yes | T157: Assigned | U157: msg fields | V157: Alex
C158: Youngwan So | E158: 231 | F158: No | G158: SAMSUNG | H158: Technical | I158: 125 | J158: 10.39.11.3.6 | K158: 11 | L158: "Response Status Present" field doesn't exist in Presence Bitmap field in p.110. If assuming it exists, its name should be "Response Status Present" not "Response Status" | N158: Please align all the fields inside "Presence Bitmap" wherever "Presence Bitmap" is used throughout the whole document. | O158: Yes | T158: Assigned | U158: msg fields | V158: Rojan
C159: Youngwan So | E159: 232 | F159: No | G159: SAMSUNG | H159: Technical | I159: 127 | J159: 10.39.11.3.8 | K159: 24 | L159: No definition of "Reply Time" | N159: Please add appropriate definition. | O159: No | T159: Assigned | U159: msg fields | V159: Alex
C160: Mickael Maman | E160: 87 | F160: Yes | G160: STMicroelectronics | H160: Technical | I160: 128 | J160: 10.39.11.3.8 | K160: 24 | L160: double definition of round trip time field | N160: remove the first definition | O160: Yes | T160: Assigned | U160: msg fields | V160: Alex
C161: Youngwan So | E161: 233 | F161: No | G161: SAMSUNG | H161: Technical | I161: 139 | J161: 10.39.11.3.11 | K161: 1 | L161: Octet for Round Trip Time is missing | N161: Please put "5" | O161: Yes | Q161: Doc 15-25-0528-00-04ab-comment-resolution-112-113-114-126-145-155-202-233.docx | T161: Assigned | U161: msg fields | V161: Youngwan
C162: Youngwan So | E162: 234 | F162: No | G162: SAMSUNG | H162: Editorial | I162: 139 | J162: 10.39.11.3.12 | K162: 27 | L162: "two" is missing | N162: Please add "two" | O162: Yes | P162: Accepted | T162: DONE
C163: Hong Won Lee | E163: 1 | F163: No | G163: LG Electronics | H163: Editorial | I163: 143 | J163: 10.39.11.3.15 | K163: 20 | L163: ACCEPT_WITH_NEW_ADDR is not defined in the Table 27 | N163: Change from "ACCEPT_WITH_NEW_ADDR" to "accept with new address (as per Table 27)" | O163: Yes | P163: Accepted | T163: DONE
C164: Hong Won Lee | E164: 2 | F164: No | G164: LG Electronics | H164: Editorial | I164: 143 | J164: 10.39.11.3.15 | K164: 21 | L164: ACCEPT_WITH_NEW_ADDR is not defined in the Table 27 | N164: Change from "ACCEPT_WITH_NEW_ADDR" to "accept with new address (as per Table 27)" | O164: Yes | P164: Accepted | T164: DONE
C165: Billy Verso | E165: 137 | F165: No | G165: Qorvo | H165: Editorial | I165: 146 | J165: 10.39.11.3.17.2 | K165: 10 | L165: strange large word spacing on this line for no apparent reason, possibly a <tab> was insert instead of a <space>. | N165: Space words more evenly on this line. | O165: No | P165: Accepted | T165: DONE
C166: Billy Verso | E166: 138 | F166: No | G166: Qorvo | H166: Editorial | I166: 149 | J166: 10.39.11.3.19 | K166: 20 | L166: "in in" typo…. | N166: change to single "in" | O166: No | P166: Accepted | T166: DONE
C167: Tero Kivinen | E167: 42 | F167: No | G167: Wi-SUN Alliance | H167: Editorial | I167: 152 | J167: 10.39.12 | K167: 6 | L167: In Table 34 macIrkExtendedAddrPresent description there is referene to the macIrkDescriptorElement "list". The macIrkList is list of macIrkDescriptorElements, which have then Elements (i.e., fields inside). | N167: Change "macIrkDescriptorElement list has" to "macIrkDeviceDescriptor has". Also rename macIrkDescriptorElement to macIrkDeviceDescriptor, as that is what we usually refer those substructures in base standard (secKeyDescriptor, PanDescriptor etc). | O167: No | P167: Revised | Q167: Rename macIrkEntry to macIrkValue everywhere, and rename macIrkDescriptorElement to macIrkDeviceDescriptor, and, change the description of the macIrkExtendedAddrPresent parameter to: "When macIrkExtendedAddrPresent is TRUE, each macIrkDeviceDescriptor in the macIrkList has an associated macIrkExtendedAddr value stored for each macIrkValue. When FALSE, extended address values are not present in the macIrkList." | T167: DONE
C168: Tero Kivinen | E168: 43 | F168: No | G168: Wi-SUN Alliance | H168: Editorial | I168: 152 | J168: 10.39.12 | K168: 6 | L168: In Table 34 the macIrkAssocRpaPrandPresent has two "When FALSE" cases. | N168: Remove the first one, and remove the extra "list" word from the 2nd. | O168: No | P168: Revised | Q168: Rename macIrkEntry to macIrkValue everywhere, and rename macIrkDescriptorElement to macIrkDeviceDescriptor, and, change the description of the macIrkAssocRpaPrandPresent parameter to: "When macIrkAssocRpaPrandPresent is TRUE, each macIrkDeviceDescriptor in the macIrkList has a macIrkAssocRpaPrand value stored for each macIrkValue. When FALSE, RPA prand values are not present in the macIrkList." | T168: DONE
C169: Tero Kivinen | E169: 44 | F169: No | G169: Wi-SUN Alliance | H169: Technical | I169: 152 | J169: 10.39.12 | K169: 6 | L169: Add macIrkAlgorithmId. | N169: Add macIrkAlgorithmId with type of "Integer", Range "as defined in Table 9-9", and description of "The AEAD algorithm used when generating RPA Hash values from IRK". | O169: Yes | T169: Assigned | U169: msg fields | V169: Alex
C170: Pooria Pakrooh | E170: 183 | F170: No | G170: Qualcomm | H170: Editorial | I170: 155 | J170: 10.40.4.5.1 | K170: 19 | L170: Remove the quotation mark. | N170: Remove the quotation mark | O170: Yes | P170: Accepted | T170: DONE
C171: Huan-Bang Li | E171: 55 | F171: Yes | G171: NICT | H171: Technical | I171: 156 | J171: 10.40.4.5.3 | K171: 20 | L171: Figure 153 includes the statement: "In this example, BM_{offset} is 2 and BM_{length} is 4. ". However, time durations for them shown in the figure are respectively 2 and 3. Description on the unit of the 'length' is not given in the figure or text. | N171: add definition of 'length' and modify accodingly. | O171: Yes | T171: Assigned | U171: Figures | V171: Pooria
C172: Huan-Bang Li | E172: 56 | F172: Yes | G172: NICT | H172: Technical | I172: 156 | J172: 10.40.4.5.3 | K172: 20 | L172: Figure 153 includes a parameter 'T', which is not defined in the figure or text. | N172: add definition for 'T' and specify its value range. | O172: Yes | T172: Assigned | U172: Figures | V172: Pooria
C173: Billy Verso | E173: 139 | F173: No | G173: Qorvo | H173: Technical | I173: 157 | J173: 10.40.3 | K173: 5 | L173: Frequency Stitching Clause 10.40.3 contains just one paragraph of nine lines, while there are four pages that describe frequency stitching based on the AC IE fields for signalling frequency stitching parameters. Much of that latter discussion ought to be moved/captured in 10.40.3, since use of these AC IE fields could be considered optional. | N173: Describe the various modes of operation of Frequency Stitching in clause 10.40.3 (drawing from 10.40.6.1, and reducing the text in 10.40.6.1 to avoid unnecessary repetition) | O173: Yes | T173: Assigned | U173: Stitching | V173: Pooria
C174: Huan-Bang Li | E174: 57 | F174: Yes | G174: NICT | H174: Editorial | I174: 160 | J174: 10.40.4.7 | K174: 10 | L174: Replace the text 'what to send when' to 'what and when to send'. | N174: as suggested. | O174: Yes | P174: Revised | Q174: Change to "what to send and when to send it" | T174: DONE
C175: Billy Verso | E175: 140 | F175: No | G175: Qorvo | H175: Editorial | I175: 164 | J175: 10.40.6.1 | K175: 11 | L175: ".." typo | N175: change to "." | O175: No | P175: Accepted | T175: DONE
C176: Billy Verso | E176: 141 | F176: No | G176: Qorvo | H176: Technical | I176: 165 | J176: 10.40.6.1 | K176: 2 | L176: There is no "RCP". Also what is "normal ranging", we can solve this by simplifying the paragraph. | N176: Replace the paragraph with "The Ranging Control field if present shall be formatted as shown in Figure 161." | O176: Yes | T176: Assigned | U176: msg fields | V176: Pooria
C177: Youngwan So | E177: 238 | F177: No | G177: SAMSUNG | H177: Editorial | I177: 168 | J177: 10.40.6.1 | K177: 9 | L177: Typo | N177: Pleas change "Sending Report" to "Sensing Report" | O177: No | P177: Accepted | T177: DONE
C178: Billy Verso | E178: 142 | F178: No | G178: Qorvo | H178: Editorial | I178: 169 | J178: 10.40.6.1 | K178: 13 | L178: Table 42 heading is on page before the table. | N178: Use "keep with next" to keep them together | O178: No | P178: Accepted | T178: DONE
C179: Billy Verso | E179: 143 | F179: No | G179: Qorvo | H179: Technical | I179: 171 | J179: 10.40.6.1 | K179: 2 | L179: "The Report Mode field when one indicates that the reported IE(s) are transmitted via in-band, or when zero that the reported IE(s) are transmitted via OOB." I am not sure this makes sense. I think any out-of-band communication is out of scope so we cannot say what form the transmission might take. | N179: Delete this bit and its description. | O179: Yes | T179: Assigned | U179: msg fields | V179: Pooria
C180: Billy Verso | E180: 144 | F180: No | G180: Qorvo | H180: Technical | I180: 175 | J180: 10.40.6.1 | K180: 21 | L180: Much of the discussion on the operation of frequency stitching is buried in the AC IE text (D03 pages 175 to 178). It would be better for this to be captured/described in subclause 10.40.3 "Frequency Stitching". | N180: Describe the various modes of operation of Frequency Stitching in clause 10.40.3 (drawing from 10.40.6.1, and reducing the text in 10.40.6.1 to avoid unnecessary repetition) | O180: Yes | T180: Assigned | U180: Stitching | V180: Pooria
C181: Youngwan So | E181: 235 | F181: No | G181: SAMSUNG | H181: Editorial | I181: 188 | J181: 10.40.6.6 | K181: 5 | L181: Bit number is all set as "1". Need to have it increasing order. | N181: Please change Bits: 1,1,1,1,1,1,1,1 to Bits: 0,1,2,3,4,5,6,7 | O181: Yes | P181: Accepted | T181: DONE
C182: Youngwan So | E182: 236 | F182: No | G182: SAMSUNG | H182: Editorial | I182: 188 | J182: 10.40.6.6 | K182: 8 | L182: Bit number is all set as "1". Need to have it increasing order. | N182: Please change Bits: 1,1 to Bits: 0,1 | O182: Yes | P182: Accepted | T182: DONE
C183: Billy Verso | E183: 145 | F183: No | G183: Qorvo | H183: Technical | I183: 193 | J183: 10.41.4.1 | K183: 1 | L183: Given advanced ranging support can be either NBA or UWB driven without necessarily supporting the other, it would be better to separately indicate whether the device can do NBA MMS UWB ranging, or UWB driven MMS UWB ranging, or both.. | N183: Split "HRP Advanced Ranging" capability into two separate capability flags: "HRP NBA Advanced Ranging" and "HRP UWB Driven Advanced Ranging" | O183: Yes | Q183: Doc 15-25-0528-00-04ab-comment-resolution-112-113-114-126-145-155-202-233.docx | T183: Assigned | U183: msg fields | V183: Youngwan
C184: Youngwan So | E184: 237 | F184: No | G184: SAMSUNG | H184: Editorial | I184: 195 | J184: 10.41.4.2 | K184: 1 | L184: Typo | N184: Please change "2-7" to "3-7" | O184: No | P184: Accepted | T184: DONE
C185: Alex Krebs | E185: 205 | F185: Yes | G185: Apple | H185: Technical | I185: 195 | J185: 10.41.4.2 Controller Association Response command | K185: 5 (Table 59) | L185: 64 us is too aggressive for mandatory support. Software decoding of long packets will take longer than that. The mandatory value should assure interoperability with such devices, while the optional values may be used by higher performance devices to reduce latency. | N185: Change AIFS times (us) to 300, 64, 32, 16 for field values 0,1,2,3 respectively | O185: No | U185: ACK
C186: Pooria Pakrooh | E186: 184 | F186: No | G186: Qualcomm | H186: Technical | I186: 203 | J186: 10.44 | K186: 5 | L186: The NB data offload feature has limitations such as significantly lower data rate relative to UWB, and also higher fading. Given that this feature can have arbitrarily high duty cycle for data transmission, if many users start to use this protocol, the congestion can be problematic. This can cause interference to unnecessarily longer range. There is no duty cycle limit specified for this feature and the benefits are not clear. Need to add a proper mandatory channel access mechanism for this feature when duty cycle is high. | N186: Adopt the proposed text resolution in DCN 15-25-426/r0 for duty cycle values higher than a threshsold. This avoids unnecessary interference to other NB-MMS devices and other technologies using UNII-3 and UNII-5 bands. | O186: Yes | T186: Assigned | U186: NB | V186: Youngwan
C187: Bin Tian | E187: 16 | F187: No | G187: Qualcomm | H187: Technical | I187: 203 | J187: 10.44.1 | K187: 11 | L187: Need to add a few sentence to discuss the LBT requirement for data loading case | M187: Add sentence like " LBT is mandatory required for NB operation if its transmission dutcy cycle is above certain threshold" | N187: Add sentence like " LBT is mandatory required for NB operation if its transmission dutcy cycle is above certain threshold" | O187: Yes | T187: Assigned | U187: NB/CCA/LBT | V187: Youngwan
C188: Youngwan So | E188: 239 | F188: No | G188: SAMSUNG | H188: Technical | I188: 203 | J188: 10.44.2 | K188: 12 | L188: It only says the case narrowband allocation packet is sent in measurement report phase. Please clarify other cases as well. | N188: Please clarify the case where narrowband allocation message is sent other than measurement report phase. | O188: Yes | T188: Assigned | V188: Youngwan
C189: Billy Verso | E189: 146 | F189: No | G189: Qorvo | H189: Technical | I189: 211 | J189: 12.3.7 | K189: 25 | L189: phyHrpUwbRxPacketConfig range enumeration should include the DDMP_PACKET type added in Table 73 | N189: Add DDMP_PACKET at the end of the list in the range column for the phyHrpUwbRxPacketConfig attribute. | O189: Yes | T189: Assigned | U189: PIB | V189: Panpan
C190: Billy Verso | E190: 147 | F190: No | G190: Qorvo | H190: Technical | I190: 212 | J190: 12.3.7 | K190: 24 | L190: phyHrpUwbTxPacketConfig range enumeration should include the DDMP_PACKET type added in Table 73 | N190: Add DDMP_PACKET at the end of the list in the range column for the phyHrpUwbTxPacketConfig attribute. | O190: Yes | T190: Assigned | U190: PIB | V190: Panpan
C191: Huan-Bang Li | E191: 58 | F191: Yes | G191: NICT | H191: Editorial | I191: 214 | J191: 12.3.12 | K191: 4 | L191: Modify 'OQPSK PHY' in the last row, right column to 'O-QPSK PHY'. | N191: as suggested. | O191: Yes | P191: Accepted | T191: DONE
C192: Billy Verso | E192: 148 | F192: No | G192: Qorvo | H192: Technical | I192: 214 | J192: 12.3.12 | K192: 21 | L192: There is a conflict between phyOqpskModulationConfig setting the modulation (p214 line 21) and the O-QPSK modulation and the DataRate parameter to the MCPS-DATA.request also doing it for the O-QPSK PHY (p24 line 2). Could remove the use of DataRate, or make phyOqpskModulationConfig only specify the RX modulation. However this needs careful consideration to make sure the solution covers all the cases and various operations, and that we set all modes appropriately in TX and RX especially so that the receiver can correctly receive and decode the packet and report the result. | N192: The solution proposed for my comment on p24 line 3 seems to be a good way to do it…. | O192: Yes | T192: Assigned | U192: O-QPSK-Modulation/Rate | V192: Huan-Bang
C193: Billy Verso | E193: 149 | F193: No | G193: Qorvo | H193: Technical | I193: 214 | J193: 12.3.12 | K193: 24 | L193: There is also a conflict here between phyOqpskSfdPatternNumber and the DataRate parameter to the MCPS-DATA.request since the pattern number here also trying to selecting the DataRate to use in TX (with no reporting). If my proposed solution to the conflict between phyOqpskModulationConfig and DataRate, (as per my comment on p24 line 2), is accepted then phyOqpskSfdPatternNumber is not needed. | N193: Delete the row with phyOqpskSfdPatternNumber. [Assuming the solution proposed for my comment on p24 line 3 is adopted making phyOqpskSfdPatternNumber unnecessary]. | O193: Yes | T193: Assigned | U193: O-QPSK-Modulation/Rate | V193: Huan-Bang
C194: Larry Zakaib | E194: 89 | F194: Yes | G194: Spark Microsystems | H194: Technical | I194: 215 | J194: 12.3.12 | K194: 1 | L194: The phyLeUwbCfg1FecCC and phyLeUwbCfg1SymbolRate PHY PIB attributes are not set by the PHY Config Index field. | N194: Remove reference to the PHY Config Index in the Description for these PIB Attributes in Table 12-14. Remove the "1" in the name of these PIB attributes in Table 12-14 and wherever they occur in D03 | O194: Yes | T194: Assigned | U194: LE UWB PHY | V194: Larry
C195: Bin Tian | E195: 4 | F195: No | G195: Qualcomm | H195: Editorial | I195: 216 | J195: 13.1.2.3 | K195: 7 | L195: Table 69 should be Table 68 | M195: as in the comment | N195: as in the comment | O195: Yes | P195: Rejected | Q195: The table references here are correct. | T195: N/A
C196: Huan-Bang Li | E196: 59 | F196: Yes | G196: NICT | H196: Technical | I196: 216 | J196: 13.1.2.3 | K196: 13 | L196: There is no reason to exclude Config #8 in Table 69. The sentence, "… Config #1 to #7 in Table 69" should be modified to "… Config #1 to #8 in Table 69". | N196: as suggested. | O196: Yes | T196: Assigned | U196: O-QPSK PHY | V196: Panpan
C197: Bin Tian | E197: 5 | F197: No | G197: Qualcomm | H197: Technical | I197: 216 | J197: 13.1.2.3 | K197: 14 | L197: Add " for the 5800 MHz and 6200 MHz bands" to the end of Table 68 title | N197: as in the comment | O197: Yes | T197: Assigned | U197: O-QPSK PHY | V197: Panpan
C198: Billy Verso | E198: 150 | F198: No | G198: Qorvo | H198: Technical | I198: 220 | J198: 13.2.8 | K198: 4 | L198: Assuming we want the same chip transmission order in 5800 and 6250 bands as is specified in the base standard, we should modify clause 13.2.8 in the base standard to add these new bands. | N198: Add appropriate clause text from base standard clause 13.2.8 and show the editing necessary to properly specify the chip transmission order when operating in the 5800 MHz and 6200 MHz bands. | O198: Yes | U198: O-QPSK PHY
C199: Billy Verso | E199: 151 | F199: No | G199: Qorvo | H199: Technical | I199: 220 | J199: 13.3.9 | K199: 23 | L199: Given that we have specified a symbol tolerance of 20ppm for 5800 and 6250 bands we should probably also update the transmit centre frequency tolerance accordingly. | N199: Add appropriate clause heading from base standard clause 13.2.8 and similar text to base standard to specify that the transmit center frequency tolerance when operating in the 5800 MHz and 6200 MHz bands shall be 20x10e-6 | O199: Yes | U199: O-QPSK PHY
C200: Mickael Maman | E200: 88 | F200: Yes | G200: STMicroelectronics | H200: Editorial | I200: 221 | J200: 13.3.15 | K200: 6 | L200: wrong reference to the figure | N200: "Figure 23" | O200: Yes | P200: Rejected | Q200: The figure reference is correct. | T200: N/A
... 45 more rows

Sheet Progress-Status
B2: Comments and Resolution Status | K2: Draft Editing Status
B4: Total # Comments | C4: # with Blank resolution | D4: # with non-blank resolution | E4: # with "Rejected" resolution | F4: # with "Accepted" resolution | G4: # with "Revised" resolution | H4: # Assigned | I4: No Resolution, not Assigned | K4: DONE | L4: N/A | N4: PART | O4: Ready | P4: ISSUE | Q4: ASSIGNED | S4: Blanks
B5: =COUNTA(Comments!E:E)-1 -> 244 | C5: =B5-D5 -> 155 | D5: =COUNTA(Comments!P:P)-1 -> 89 | E5: =COUNTIF(Comments!P:P,"Rejected") -> 7 | F5: =COUNTIF(Comments!P:P,"Accepted") -> 68 | G5: =COUNTIF(Comments!P:P,"Revised") -> 14 | H5: =COUNTA(Comments!V:V)-1 -> 140 | I5: =B5-D5-H5 -> 15 | K5: =COUNTIF(Comments!T:T,K4) -> 82 | L5: =COUNTIF(Comments!T:T,L4) -> 7 | N5: =COUNTIF(Comments!T:T,N4) -> 0 | O5: =COUNTIF(Comments!T:T,O4) -> 0 | P5: =COUNTIF(Comments!T:T,P4) -> 0 | Q5: =COUNTIF(Comments!T:T,Q4) -> 140 | S5: =B5-(COUNTA(Comments!T:T)-1) -> 15
B7: Technical | C7: Editorial | D7: =IF(D5=E7,"Okay","MIS-MATCHED") -> Okay | E7: =E5+F5+G5 -> 89 | K7: =SUM(K5:L5) -> 89 | L7: Done + N/A
B8: =COUNTIF(Comments!H:H,B7) -> 164 | C8: =COUNTIF(Comments!H:H,C7) -> 77
B9: General | C9: =IF(B5=C10,"Okay","MIS-MATCHED") -> Okay | D9: =D5/$B5 -> 0.3647540984 | E9: 0.02868852459 | F9: 0.2786885246 | G9: 0.05737704918 | H9: 0.5737704918 | I9: 0.06147540984 | K9: =K7/$B$5 -> 0.3647540984 | L9: of total | N9: =N5/$B$5 -> 0 | O9: =O5/$B$5 -> 0 | P9: =P5/$B$5 -> 0 | Q9: =Q5/$B$5 -> 0.5737704918 | S9: =S5/$B$5 -> 0.06147540984
B10: =COUNTIF(Comments!H:H,B9) -> 3 | C10: =C8+B8+B10 -> 244
K11: =K9+SUM(N9:Q9) -> 0.9385245902
B19: Assigned Comments
B21: Alex | C21: Ankur | D21: Ben | E21: Billy | F21: Billy, Alex | G21: Billy, Carl | H21: Billy, Riku | I21: Editor | J21: Frank | K21: Hongwon | L21: Huan-Bang | N21: Jinjing | O21: Kangjin | P21: Larry | Q21: Li-Hsiang | S21: Mickael | T21: Panpan | U21: Pooria | V21: Riku | W21: Rojan | X21: Tero | Y21: Wenzheng | AA21: Xiliang | AB21: Youngwan | AC21: SUM
B22: =COUNTIF(Comments!V:V,B21) -> 15 | C22: =COUNTIF(Comments!V:V,C21) -> 0 | D22: =COUNTIF(Comments!V:V,D21) -> 0 | E22: =COUNTIF(Comments!V:V,E21) -> 13 | F22: =COUNTIF(Comments!V:V,F21) -> 0 | G22: =COUNTIF(Comments!V:V,G21) -> 0 | H22: =COUNTIF(Comments!V:V,H21) -> 0 | I22: =COUNTIF(Comments!V:V,I21) -> 1 | J22: =COUNTIF(Comments!V:V,J21) -> 0 | K22: =COUNTIF(Comments!V:V,K21) -> 0 | L22: =COUNTIF(Comments!V:V,L21) -> 5 | N22: =COUNTIF(Comments!V:V,N21) -> 2 | O22: =COUNTIF(Comments!V:V,O21) -> 0 | P22: =COUNTIF(Comments!V:V,P21) -> 28 | Q22: =COUNTIF(Comments!V:V,Q21) -> 0 | S22: =COUNTIF(Comments!V:V,S21) -> 4 | T22: =COUNTIF(Comments!V:V,T21) -> 5 | U22: =COUNTIF(Comments!V:V,U21) -> 27 | V22: =COUNTIF(Comments!V:V,V21) -> 9 | W22: =COUNTIF(Comments!V:V,W21) -> 12 | X22: =COUNTIF(Comments!V:V,X21) -> 0 | Y22: =COUNTIF(Comments!V:V,Y21) -> 0 | AA22: =COUNTIF(Comments!V:V,AA21) -> 0 | AB22: =COUNTIF(Comments!V:V,AB21) -> 19 | AC22: =SUM(B22:AB22) -> 140
B27: Comments with Proposed Resolutions
B29: Alex | C29: Ankur | D29: Ben | E29: Billy | F29: Billy, Alex | G29: Billy, Carl | H29: Billy, Riku | I29: Editor | J29: Frank | K29: Hongwon | L29: Huan-Bang | N29: Jinjing | O29: Kangjin | P29: Larry | Q29: Li-Hsiang | S29: Mickael | T29: Panpan | U29: Pooria | V29: Riku | W29: Rojan | X29: Tero | Y29: Wenzheng | AA29: Xiliang | AB29: Youngwan, Billy | AC29: SUM
B30: 0 | C30: 0 | D30: 0 | E30: 0 | F30: 0 | G30: 0 | H30: 0 | I30: 0 | J30: 0 | K30: 0 | L30: 0 | N30: 0 | O30: 0 | P30: 0 | Q30: 0 | S30: 0 | T30: 0 | U30: 0 | V30: 0 | W30: 0 | X30: 0 | Y30: 0 | AA30: 0 | AB30: 0 | AC30: =SUM(B30:AB30) -> 0
B35: Comments without Proposed Resolutions
B37: Alex | C37: Ankur | D37: Ben | E37: Billy | F37: Billy, Alex | G37: Billy, Carl | H37: Billy, Riku | I37: Editor | J37: Frank | K37: Hongwon | L37: Huan-Bang | N37: Jinjing | O37: Kangjin | P37: Larry | Q37: Li-Hsiang | S37: Mickael | T37: Panpan | U37: Pooria | V37: Riku | W37: Rojan | X37: Tero | Y37: Wenzheng | AA37: Xiliang | AB37: Youngwan, Billy | AC37: SUM
B38: =B22-B30 -> 15 | C38: =C22-C30 -> 0 | D38: 0 | E38: 13 | F38: 0 | G38: 0 | H38: 0 | I38: 1 | J38: 0 | K38: 0 | L38: 5 | N38: =N22-N30 -> 2 | O38: 0 | P38: 28 | Q38: 0 | S38: =S22-S30 -> 4 | T38: 5 | U38: 27 | V38: 9 | W38: 12 | X38: 0 | Y38: 0 | AA38: =AA22-AA30 -> 0 | AB38: 19 | AC38: =SUM(B38:AB38) -> 140
T205: DONE
T212: DONE
T218: DONE
Z406: Was Editorial now Technical, Needs Assignment. Perhaps to Alex, if he agrees, since he has other comments on the same part of the doc already assigned to him.
U483: This is a complicated figure without proper text description, and not correct. It is using MLME-SCAN which looks for beacons. I think it is better not to put this in until we have descriptive text and corrected figure, following the style used in the base standard.
Z491: Was Editorial now Technical, Needs Assignment. Perhaps to Jinjing since a similar comment #782 is already assigned to him
Z493: Was Editorial now Technical, Needs Assignment. Perhaps to Jinjing since a similar comment #783 is already assigned to him
Z497: Was Editorial now Technical, Needs Assignment. Perhaps to Jinjing since a similar comment #786 is already assigned to him

Sheet Categories
A1: MMS w/NBA | B1: MMS wo/NBA | C1: New frame format | D1: Ack changes | E1: RSS | F1: SSBD | G1: Other channel access | H1: Security | I1: Multi-node ranging / Hyper Block | J1: Narrow Band function | K1: Device discovery Ranging | L1: Device discovery Data | M1: Parameter Negotiation | N1: Wake-up Radio | O1: UWB data offload | P1: Narrow Band PHY | Q1: UWB PHY HRP | R1: UWB PHY LE | S1: Sensing | T1: Dynamic Data Rate Mode | U1: PICS | V1: IEs | W1: OTHER
A2: NBMSS | B2: UWBMSS | C2: NEWFR | D2: ACK | E2: RSS | F2: SSBD | G2: CHA | H2: SEC | I2: HB | J2: NBF | K2: DISC-R | L2: DISC-D | M2: PARNEG | N2: WUR | O2: UWBDO | P2: PHYNB | Q2: PHYHRP | R2: PHYLE | S2: SENS | T2: DDRN | U2: PICS | W2: OTHER
A3: Alex | B3: Carl | C3: Alex | D3: Billy | E3: Sven | F3: Larry | G3: Ben | H3: Rojan | I3: Youngwan | J3: Alex | K3: Alex | L3: [Carlos] | M3: Billy | N3: Billy | O3: Youngwan | P3: Bin Q | Q3: Vinod | R3: Larry | S3: Pooria & Bin Q | T3: [Carlos]
F7: 11.2.8
F8: 12.3.2
T205: DONE
T212: DONE
T218: DONE
U406: Was Editorial now Technical, Needs Assignment. Perhaps to Alex, if he agrees, since he has other comments on the same part of the doc already assigned to him.
U483: This is a complicated figure without proper text description, and not correct. It is using MLME-SCAN which looks for beacons. I think it is better not to put this in until we have descriptive text and corrected figure, following the style used in the base standard.
U491: Was Editorial now Technical, Needs Assignment. Perhaps to Jinjing since a similar comment #782 is already assigned to him
U493: Was Editorial now Technical, Needs Assignment. Perhaps to Jinjing since a similar comment #783 is already assigned to him
U497: Was Editorial now Technical, Needs Assignment. Perhaps to Jinjing since a similar comment #786 is already assigned to him

Sheet Detailed Status
A1: Resolution | B1: Accepted | E1: Rejected | G1: Revised | J1: Blank
B2: =COUNTIF(Comments!P:P,"Accepted") -> 68 | E2: =COUNTIF(Comments!P:P,"Rejected") -> 7 | G2: =COUNTIF(Comments!P:P,"Revised") -> 14 | J2: 0
A3: Editor Status | B3: ISSUE | C3: Ready | D3: DONE | E3: Waiting | F3: N/A | G3: ISSUE | H3: Ready | I3: DONE | J3: Ready | K3: Assigned | U3: Unassigned
B4: 0 | C4: 0 | D4: 0 | E4: 0 | F4: 0 | G4: 0 | H4: 0 | I4: 0 | J4: 0 | K4: 0 | U4: 0

Sheet To-Do

Sheet Historical Status
A1: Version | C1: -00 | D1: -01 | E1: -02 | F1: -03 | G1: -04 | H1: -05 | I1: -06 | J1: -07 | K1: -08 | L1: -09 | M1: -10 | N1: -11 | O1: -12 | P1: -13 | Q1: -14 | R1: -15 | S1: -16 | T1: -17 | U1: -18 | V1: -19 | W1: -20 | X1: -21 | Y1: -22 | Z1: -23 | AA1: -24 | AB1: -25 | AC1: -26 | AD1: -27 | AE1: -28 | AF1: -29 | AG1: -30 | AH1: -31 | AI1: -32 | AJ1: -33 | AK1: -34 | AL1: -35 | AM1: -36 | AN1: -37 | AO1: -38 | AP1: -39 | AQ1: -40 | AR1: -41 | AS1: -42
A2: Date | C2: 2025-10-06 | D2: 2025-10-07 | E2: 2025-10-09 | F2: 2025-10-09 | G2: 2025-10-13 | H2: 2025-10-14
A3: Occasion | C3: Initial spreadsheet | E3: Before 2025-10-09 Telecon | F3: After 2025-10-09 Telecn | G3: Before 2025-10-14 Telecon | H3: After 2025-10-14 Telecon
A5: Editorial | B5: Total | C5: 76 | D5: 81 | E5: 81 | F5: 77 | G5: 77 | H5: 77
C6: =C5/(C5+C19) -> 0.3015873016 | D6: 0.3319672131 | E6: 0.3319672131 | F6: 0.3155737705 | G6: 0.3155737705 | H6: 0.3155737705
B7: Addressed | C7: 0 | D7: 0 | E7: 70 | F7: 70 | G7: 74 | H7: 74
C8: =C7/C5 -> 0 | D8: 0 | E8: 0.8641975309 | F8: 0.9090909091 | G8: 0.961038961 | H8: 0.961038961
B9: Ready | C9: 0 | D9: 0 | E9: 0 | F9: 0 | G9: 0 | H9: 0
C10: =C9/C5 -> 0 | D10: 0 | E10: 0 | F10: 0 | G10: 0 | H10: 0
B11: Done | C11: 0 | D11: 0 | E11: 67 | F11: 67 | G11: 71 | H11: 71
C12: =C11/C5 -> 0 | D12: 0 | E12: 0.8271604938 | F12: 0.8701298701 | G12: 0.9220779221 | H12: 0.9220779221
B13: N/A | C13: 0 | D13: 0 | E13: 3 | F13: 3 | G13: 3 | H13: 3
C14: =C13/C5 -> 0 | D14: 0 | E14: 0.03703703704 | F14: 0.03896103896 | G14: 0.03896103896 | H14: 0.03896103896
B15: ISSUE | C15: 0 | D15: 0 | E15: 4 | F15: 0 | G15: 0 | H15: 0
C16: =C15/C5 -> 0 | D16: 0 | E16: 0.04938271605 | F16: 0 | G16: 0 | H16: 0
B17: To Be Addressed | C17: 76 | D17: 81 | E17: 7 | F17: 7 | G17: 3 | H17: 3
C18: =C17/C5 -> 1 | D18: 1 | E18: 0.08641975309 | F18: 0.09090909091 | G18: 0.03896103896 | H18: 0.03896103896
A19: Technical/General | B19: Total | C19: 176 | D19: 163 | E19: 163 | F19: 167 | G19: 167 | H19: 167
C20: =C19/(C19+C5) -> 0.6984126984 | D20: 0.6680327869 | E20: 0.6680327869 | F20: 0.6844262295 | G20: 0.6844262295 | H20: 0.6844262295
B21: Addressed | C21: 0 | D21: 0 | E21: 0 | F21: 3 | G21: 6 | H21: 13
C22: =C21/C19 -> 0 | D22: 0 | E22: 0 | F22: 0.01796407186 | G22: 0.03592814371 | H22: 0.07784431138
B23: Ready | C23: 0 | D23: 0 | E23: 0 | F23: 2 | G23: 0 | H23: 5
C24: =C23/C19 -> 0 | D24: 0 | E24: 0 | F24: 0.0119760479 | G24: 0 | H24: 0.02994011976
B25: Done | C25: 0 | D25: 0 | E25: 0 | F25: 1 | G25: 4 | H25: 4
C26: =C25/C19 -> 0 | D26: 0 | E26: 0 | F26: 0.005988023952 | G26: 0.02395209581 | H26: 0.02395209581
B27: N/A | C27: 0 | D27: 0 | E27: 0 | F27: 0 | G27: 2 | H27: 4
C28: =C27/C19 -> 0 | D28: 0 | E28: 0 | F28: 0 | G28: 0.0119760479 | H28: 0.02395209581
B29: To Be Addressed | C29: 176 | D29: 163 | E29: 163 | F29: 164 | G29: 161 | H29: 154
C30: =C29/C19 -> 1 | D30: 1 | E30: 1 | F30: 0.9820359281 | G30: 0.9640718563 | H30: 0.9221556886
B31: Assigned | C31: 6 | D31: 77 | E31: 76 | F31: 126 | G31: 123 | H31: 139
C32: =C31/C19 -> 0.03409090909 | D32: 0.472392638 | E32: 0.4662576687 | F32: 0.754491018 | G32: 0.7365269461 | H32: 0.8323353293
B33: Proposed Resolutions | C33: 0 | D33: 0 | E33: 0 | F33: 19 | G33: 19 | H33: 27
C34: =C33/C19 -> 0 | D34: 0 | E34: 0 | F34: 0.1137724551 | G34: 0.1137724551 | H34: 0.1616766467
B35: Need Proposals | C35: 6 | D35: 77 | E35: 76 | F35: 107 | G35: 104 | H35: 112
C36: =C35/C19 -> 0.03409090909 | D36: 0.472392638 | E36: 0.4662576687 | F36: 0.6407185629 | G36: 0.622754491 | H36: 0.6706586826
B37: Not Assigned | C37: 170 | D37: 86 | E37: 86 | F37: 38 | G37: 38 | H37: 15
C38: =C37/C19 -> 0.9659090909 | D38: 0.527607362 | E38: 0.527607362 | F38: 0.2275449102 | G38: 0.2275449102 | H38: 0.08982035928
B39: Issue | C39: 0 | D39: 0 | E39: 1 | F39: 0 | G39: 0 | H39: 0
A40: Blank | B40: Total

Sheet CAD
A1: Comment ID | B1: Comment # | C1: Name | D1: Style | E1: Index # | F1: Vote | G1: Affiliation | H1: Category | I1: Page | J1: Sub-clause | K1: Line # | L1: Comment | M1: File | N1: Proposed Change | O1: Must Be Satisfied? | P1: Disposition Status (Accepted, Rejected, Revised) | Q1: Disposition Detail | R1: Category | S1: Notes | T1: Editor Status DONE, Ready, N/A) | U1: Editor Notes | V1: Assignee

Sheet Rogue Comments
A1: Comment ID | B1: Comment # | C1: Name | D1: Style | E1: Index # | F1: Vote | G1: Affiliation | H1: Category | I1: Page | J1: Sub-clause | K1: Line # | L1: Comment | M1: File | N1: Proposed Change | O1: Must Be Satisfied? | P1: Disposition Status (Accepted, Rejected, Revised) | Q1: Disposition Detail | R1: Category | S1: Notes | T1: Editor Status DONE, Ready, N/A) | U1: Editor Notes | V1: Assignee
C2: Pelen Salem | E2: 1 | F2: Non-voter | G2: Cisco Systems | H2: Technical | I2: 71 | J2: 10.39.3.6 | K2: 36 | L2: Regarding the sentence "Contention-based initialization and setup may be used for one-to-one ranging or one-to-many ranging.": Instead of "may", Contention based protocol (such as LBT) shall be mandatory. | N2: The sentence to be modified to state that Contention based protocol (such as LBT) shall be mandatory. | O2: No
C3: Pelen Salem | E3: 2 | F3: Non-voter | G3: Cisco Systems | H3: Technical | I3: 80 | J3: 10.39.4.2 | K3: 32 | L3: There is no standard coexistence mechanism defined for NB channel access when using O-QPSK. | N3: The first sentence to be modified to state that O-QPSK PHY shall use the listen-before-talk (LBT). | O3: No
C4: Pelen Salem | E4: 3 | F4: Non-voter | G4: Cisco Systems | H4: Technical | I4: 80 | J4: 10.39.4.2 | K4: 33 | L4: There is no detail of the coexistence mechanism. | N4: LBT scheme details to be inserted including the ED threshold. | O4: No
C5: Pelen Salem | E5: 4 | F5: Non-voter | G5: Cisco Systems | H5: Technical | I5: 87 | J5: 10.39.8.3 | K5: 18 | L5: CCA is marked as an optional feature, meaning we cannot does not guarantee coexistence with other devices. Additionally, CCA helps prevent transmissions that would cause interference. | N5: A sentence to be inserted to explain that prior to any O-QPSK PHY transmission, CCA mode 1 or 3a must be used. The ED threshold should be set at -75 dBm/MHz or lower. Transmission must not proceed if the CCA indicates the medium is busy." | O5: No
C6: Pelen Salem | E6: 5 | F6: Non-voter | G6: Cisco Systems | H6: Technical | I6: 87 | J6: 10.39.8.3 | K6: 18 | L6: A CCA busy indication before an NB transmission can result in a significant penalty, as it may cause the entire exchange to be lost. Permitting multiple CCA attempts before an NB transmission can enhance the protocol’s resilience to CCA busy conditions. | N6: A paragraph to be inserted to explain that if a CCA indicates a busy medium and the number of consecutive CCAs is less than the value of macMmsNbMaxConsecutiveCCAs, another CCA may be performed after waiting at least 50 microseconds on a different channel or at least 100 microseconds on the same channel. A receiving device should check for the presence of an expected O-QPSK PHY transmission. If the expected transmission is not detected and the number of consecutive absences is less than macMmsNbMaxConsecutiveCCAs, the device may proceed to the next channel (which may be the same channel) and check for the expected transmission there. Add a new MIB variable with the following properties: • Attribute: macMmsNbMaxConsecutiveCCAs • Type: Integer • Range: 0–255 • Description: Number of consecutive CCAs • Default: 2 | O6: No
C7: Pelen Salem | E7: 6 | F7: Non-voter | G7: Cisco Systems | H7: Technical | I7: 87 | J7: 10.39.8.3 | K7: 18 | L7: ED Threshold is not defined. | N7: A sentence to be inserted to define an ED threshold that is set at -75 dBm/MHz or lower. | O7: No
C8: Pelen Salem | E8: 7 | F8: Non-voter | G8: Cisco Systems | H8: Technical | I8: 87 | J8: 10.39.8.3 | K8: 18 | L8: Regarding "with CCA mode 1 or 3": While CCA mode 1 or 3 can be used, it should be noted that CCA mode 3 includes two options: 3a and 3b and only the option 3a guarantees energy detection. | N8: The sentence needs to be updated to edit "3" as "3a". | O8: No
C9: Pelen Salem | E9: 8 | F9: Non-voter | G9: Cisco Systems | H9: Technical | I9: 87 | J9: 10.39.8.3 | K9: 18 | L9: CCA is marked as an optional feature, which falls below industry best practice for three main reasons: 1) .15.4ab devices collide over the air with other .15.4ab devices much more often, thereby prematurely limiting the achievable capacity and QoS/determinism. This directly limits the available use cases and market size for .15.4ab products. 2) Implementers incorporating .15.4ab devices that are built into larger multi-radio devices in a straightforward way collide "internally" with the other radios much more often, so actual integration is more (unnecessarily) challenging, and oftentimes there is no good solution such that performance of the .15.4a device (or the other radios) is compromised (here, energy detect with deferral-in-time is generally recognized as the best option for in-device coexistence). 3) .15.4ab devices collide over the air with other non-.15.4ab devices much more often, thereby prematurely limiting the achievable capacity and QoS/determinism for both systems, and thereby undermining this amazing experiment of unlicensed spectrum and taking us down a path of tragedy of the commons (e.g., in many scenarios 2.4 GHz is regarded as a junk band unsuited to QoS/deterministic traffic because of impolite transmitters) - basically a lack of community-mindedness. Note that there is no 4th bullet related to regulations, because regulations are just separate - devices must meet regulations as well as standard-mandated coexistence requirements. Regulations only matter to standards in that standards should provide a toolkit (potentially of optional features) that enables regulatory requirements to be met. Rather, the argument for mandatory coexistence mechanisms rests on the self-interested bullets 1)-3) above. | N9: Mandate CCA based on energy detect at minimum. Yes CCA (and thence LBT and related technologies) is always based on imperfect information and achieves less than some theoretical optimum, but if we make perfect the enemy of the good or get distracted by regulatory arguments, we don't make any progress towards the three self-interested industry goals identified in the comment. | O9: No
C10: Menzo Wentink | E10: 9 | F10: Non-voter | G10: Qualcomm | H10: Technical | I10: 87 | J10: 10.39.8.3 | K10: 18 | L10: CCA is optional, which implies that coexistence with other devices can not be ensured. CCA also avoids transmitting into destructive interference. | N10: Insert the following sentence: "CCA mode 1 or 3a shall be applied immediately before any O-QPSK PHY transmission. The ED threshold shall be -75 dBm/MHz or lower. The transmission shall not occur when the CCA reports a busy medium." | O10: No
C11: Menzo Wentink | E11: 10 | F11: Non-voter | G11: Qualcomm | H11: Technical | I11: 87 | J11: 10.39.8.3 | K11: 18 | L11: CCA busy before an NB transmission causes a high penalty because the entire exchange may be lost. Allow more than one CCA before an NB transmission to incresae the resilience of the protocol against CCA busy. | N11: Insert the following sentences: "If the CCA reports a busy medium and the number of consecutive CCAs is not equal to macMmsNbMaxConsecutiveCCAs, a new CCA may be performed after at least 50 s on another channel or after at least 100 s on the same channel. A receiving device shall check for the presence of an expected O-QPSK PHY transmission. If the expected transmission is not present and the number of consecutive absences is not equal to macMmsNbMaxConsecutiveCCAs, the device may go to the next channel (which might be the same channel) and check for the presence of the expected transmission on that channel." Insert a new MIB variable with Attribute "macMmsNbMaxConsecutiveCCAs", Type "Integer", Range "0-255", Description "Number of consecutive CCAs", and Default "2". | O11: No
C12: Menzo Wentink | E12: 11 | F12: Non-voter | G12: Qualcomm | H12: Technical | I12: 87 | J12: 10.39.8.3 | K12: 18 | L12: No ED Threshold is defined. | N12: Add "The ED threshold shall be -75 dBm/MHz or lower." | O12: No
C13: Menzo Wentink | E13: 12 | F13: Non-voter | G13: Qualcomm | H13: Technical | I13: 87 | J13: 10.39.8.3 | K13: 18 | L13: "with CCA mode 1 or 3" -- CCA mode 3 has two options, 3a and 3b, but only option 3a will ensure energy detect. | N13: Change "3" to "3a". | O13: No
C14: Pelen Salem | E14: 13 | F14: Non-voter | G14: Cisco Systems | H14: Technical | I14: 203 | J14: 10.44.2 | K14: 12 | L14: How is NB channel access done here? | N14: A sentence or section to be inserted to define a mandatory channel access mechanism consistent with previous sections. | O14: No

Sheet Sheet1
A1: Commenter | B1: # Comments
A2: Billy Verso | B2: 345 | C2: =B2/663 -> 0.520361991
A3: Mickael Maman | B3: 80 | C3: 0.1206636501
A4: Tero Kivinen | B4: 65 | C4: 0.09803921569
A5: Pooria Pakrooh | B5: 27 | C5: 0.0407239819
A6: Rojan Chitrakar | B6: 24 | C6: 0.03619909502
A7: Huan-Bang Li | B7: 21 | C7: 0.03167420814
A8: Carlos Aldana | B8: 15 | C8: 0.02262443439
A9: B. Rolfe | B9: 13 | C9: 0.01960784314
A10: Li Panpan | B10: 12 | C10: 0.01809954751
A11: Li-Hsiang Sun | B11: 10 | C11: 0.01508295626
A12: Bin Tian | B12: 10 | C12: 0.01508295626
A13: Alex Krebs | B13: 9 | C13: 0.01357466063
A14: Bin Qian | B14: 7 | C14: 0.01055806938
A15: Riku Pirhonen | B15: 5 | C15: 0.00754147813
A16: Larry Zakaib | B16: 5 | C16: 0.00754147813
A17: Jaegook Lee | B17: 3 | C17: 0.004524886878
A18: Stephen Shellhammer | B18: 2 | C18: 0.003016591252
A19: Vinod Kristem | B19: 2 | C19: 0.003016591252
A20: Dries Neirynck | B20: 2 | C20: 0.003016591252
A21: Menzo Wentink | B21: 2 | C21: 0.003016591252
A22: Frank Leong | B22: 1 | C22: 0.001508295626
A23: Hong Won Lee | B23: 1 | C23: 0.001508295626
A24: Xiliang Luo | B24: 1 | C24: 0.001508295626
A25: Stephan Sand | B25: 1 | C25: 0.001508295626
